{"text_format":"1","workbook":"xlsx","n_sheets":13,"sheets":["PORTADA","MENU","FCFDI","RCFDI","CFDIP","TIPOS","FUNDAMENTO","FUNDAMENTOR","DESCRIPCIÓN","RETENCION","OBJETO","DATOS","CATALOGO"],"not_rendered":{"charts":0,"images":23,"macros":1,"external_links":0,"defined_names":7,"comments":2,"pivot_tables":0},"unopened":[],"bounds":{"document_bytes":16777216,"sheet_cells":100000,"rows_first":2000,"rows_last":500,"rows_between":2000,"halvings":0,"cell_chars":16384,"cell_head_chars":4096},"cells_cut":0,"cells_raw":0,"read":"whole","date_system":"1900"}

{"sheet":"PORTADA","index":0,"n_rows":325,"n_cols":16,"rows_kept":325,"cut":false,"hidden":false,"merged":[]}
[]
[]
[]
[]
[]
[]
[]
[]
[]
[]
[]
[]
[]
[]
[]
[]
[]
[]
[]
[]
[]
[]
[]
[]
[]
[null,null,null,"670106&"]
[]
[]
[]
[]
[]
[]
[]
[]
[]
[]
[]
[]
[]
[]
[]
[]
[]
[]
[]
[]
[]
[]
[]
[]
[]
[]
[]
[]
[]
[]
[]
[]
[]
[]
[]
[]
[]
[]
[]
[]
[]
[]
[]
[]
[]
[]
[]
[]
[]
[]
[]
[]
[]
[null,null,null,null,87965236]
[]
[]
[]
[]
[]
[]
[]
[]
[]
[]
[]
[]
[]
[]
[]
[]
[]
[]
[]
[]
[]
[]
[]
[]
[]
[]
[]
[]
[]
[]
[]
[]
[]
[]
[]
[]
[]
[]
[]
[]
[]
[]
[]
[]
[]
[]
[]
[]
[]
[]
[]
[]
[]
[]
[]
[]
[]
[]
[]
[]
[]
[]
[]
[]
[]
[]
[]
[]
[]
[]
[]
[]
[]
[]
[]
[]
[]
[]
[]
[]
[]
[]
[]
[]
[]
[]
[]
[]
[]
[]
[]
[]
[]
[]
[]
[]
[]
[]
[]
[]
[]
[]
[]
[]
[]
[]
[]
[]
[]
[]
[]
[]
[]
[]
[]
[]
[]
[]
[]
[]
[]
[]
[]
[]
[]
[]
[]
[]
[]
[]
[]
[]
[]
[]
[]
[]
[]
[]
[]
[]
[]
[]
[]
[]
[]
[]
[]
[]
[]
[]
[]
[]
[]
[]
[]
[]
[]
[]
[]
[]
[]
[]
[]
[]
[]
[]
[]
[]
[]
[]
[]
[]
[]
[]
[]
[]
[]
[]
[]
[]
[]
[]
[]
[]
[]
[]
[]
[]
[]
[]
[]
[]
[]
[]
[]
[]
[]
[]
[]
[]
[]
[]
[]
[]
[]
[]
[]
[]
[]
[]
[]
[]
[]
[]
[]
[]
[]
[]
[]
[]
[]
[]
[]
[]
[]
[]
[]
[]
[]
[]
[]
[]
[]
[]
[]
[]
[]
[]
[]
[]
[]
[]
[]
[]
[null,null,null,null,null,null,null,null,null,null,null,null,null,null,null,67010623]

{"sheet":"MENU","index":1,"n_rows":15,"n_cols":3,"rows_kept":15,"cut":false,"hidden":false,"merged":[]}
[]
[]
[]
[]
[]
[null,"DESCRIPCIÓN","NOMBRE DE LA HOJA"]
[null,{"$f":"IF(PORTADA!$E$80=87965236,\"Formato CFDI\",\"\")","v":"Formato CFDI"},{"$f":"IF(PORTADA!$E$80=87965236,HYPERLINK(\"#FCFDI!D6\",\"FCFDI\"),\"\")","v":"FCFDI"}]
[null,{"$f":"IF(PORTADA!$E$80=87965236,\"Importación XML en forma individual para su lectura\",\"\")","v":"Importación XML en forma individual para su lectura"},{"$f":"IF(PORTADA!$E$80=87965236,HYPERLINK(\"#RCFDI!C7\",\"RCFDI\"),\"\")","v":"RCFDI"}]
[null,{"$f":"IF(PORTADA!$E$80=87965236,\"Importación XML con complemento de pagos para su lectura\",\"\")","v":"Importación XML con complemento de pagos para su lectura"},{"$f":"IF(PORTADA!$E$80=87965236,HYPERLINK(\"#CFDIP!C7\",\"CFDIP\"),\"\")","v":"CFDIP"}]
[null,{"$f":"IF(PORTADA!$E$80=87965236,\"Tipo de CFDI\",\"\")","v":"Tipo de CFDI"},{"$f":"IF(PORTADA!$E$80=87965236,HYPERLINK(\"#TIPOS!B5\",\"TIPOS\"),\"\")","v":"TIPOS"}]
[null,{"$f":"IF(PORTADA!$E$80=87965236,\"Algunos fundamentos emisor del CFDI\",\"\")","v":"Algunos fundamentos emisor del CFDI"},{"$f":"IF(PORTADA!$E$80=87965236,HYPERLINK(\"#FUNDAMENTO!B6\",\"FUNDAMENTO\"),)","v":"FUNDAMENTO"}]
[null,{"$f":"IF(PORTADA!$E$80=87965236,\"Algunos fundamentos receptor del CFDI\",\"\")","v":"Algunos fundamentos receptor del CFDI"},{"$f":"IF(PORTADA!$E$80=87965236,HYPERLINK(\"#FUNDAMENTOR!C5\",\"FUNDAMENTOR\"),)","v":"FUNDAMENTOR"}]
[null,{"$f":"IF(PORTADA!$E$80=87965236,\"Datos adicionales del campo descripción\",\"\")","v":"Datos adicionales del campo descripción"},{"$f":"IF(PORTADA!$E$80=87965236,HYPERLINK(\"#DESCRIPCIÓN!B3\",\"DESCRIPCIÓN\"),)","v":"DESCRIPCIÓN"}]
[null,{"$f":"IF(PORTADA!$E$80=87965236,\"Fundamento de retención\",\"\")","v":"Fundamento de retención"},{"$f":"IF(PORTADA!$E$80=87965236,HYPERLINK(\"#RETENCION!B4\",\"RETENCION\"),)","v":"RETENCION"}]
[null,{"$f":"IF(PORTADA!$E$80=87965236,\"Ejemplos campo objeto del CFDI\",\"\")","v":"Ejemplos campo objeto del CFDI"},{"$f":"IF(PORTADA!$E$80=87965236,HYPERLINK(\"#OBJETO!C4\",\"OBJETO\"),)","v":"OBJETO"}]

{"sheet":"FCFDI","index":2,"n_rows":58,"n_cols":11,"rows_kept":58,"cut":false,"hidden":false,"merged":[[37,1,37,9],[43,1,43,9],[3,1,3,3],[3,5,3,6],[3,8,3,9],[19,1,19,9],[23,1,23,9],[27,1,27,9],[9,2,10,2],[4,5,4,6],[4,1,4,3],[4,8,4,9],[21,4,21,6],[36,2,36,3]]}
[]
[null,null,null,null,null,null,null,{"$f":"IF(PORTADA!$E$80=87965236,HYPERLINK(\"#MENU!C7\",\"MENÚ\"),\"\")","v":"MENÚ"}]
[]
[null,"Nodo comprobante",null,null,null,"Nodo emisor",null,null,"Nodo receptor"]
[null,"Nodo comprobante",null,null,null,"Emisor",null,null,"Receptor"]
[null,{"$f":"IF(PORTADA!E80=87965236,FORMATO,\"\")","v":"Fecha de expedición *"},null,null,null,"RFC *",null,{"$f":"IFERROR(IF(ISERROR(VLOOKUP(G6,#REF!,1,FALSE))=FALSE,HYPERLINK(\"#LISTADO!B\"&MATCH(G6,#REF!,0),\"Ver listado\"),\"\"),\"\")","v":""},{"$f":"IF(PORTADA!E80=87965236,FORMATO1,\"\")","v":"RFC *"}]
[null,"Serie **",null,null,null,"Nombre *",null,null,"Nombre *"]
[null,"Folio **",null,null,null,"Régimen fiscal *",null,{"$f":"IFERROR(IF(AND(LEN(G6)=13,OR(G8=606,G8=612,G8=626)),HYPERLINK(\"#RETENCION!$B$4\",\"RETENCIÓN\"),\"\"),\"\")","v":""},"Domicilio fiscal del receptor *"]
[null," ",null,null,null,"FacAtrAdquirente ***",null,null,"Residencia fiscal ***"]
[null,"Forma de pago ***",null,null,null,null,null,null,"No. de registro tributario ***"]
[null,"Método de pago ***",null,null,null,null,null,null,"Régimen fiscal *",null,{"$f":"IFERROR(VLOOKUP(J11,CATALOGO!$B$12:$C$30,2,FALSE),\"\")","v":""}]
[null,"Moneda *",null,null,"",null,null,null,"Uso del CFDI *",null,{"$f":"IF(AND(J11<>\"\",J12<>\"\"),IF(ISERROR(FIND(J11,INDIRECT(\"CATALOGO!J\"&MATCH(J12,CATALOGO!$H:$H,0))))=FALSE,VLOOKUP(J12,CATALOGO!$H$51:$I$74,2,FALSE),\"No corresponde al régimen fiscal\"),\"\")","v":""}]
[null,"Tipo de cambio ***"]
[null,"Tipo de comprobante *",null,null,{"$f":"IFERROR(IF(TARI=\"670106&\",VLOOKUP(D14,TIPOS!$B$47:$C$51,2,FALSE),\"\"),\"\")","v":""}]
[null,"Exportación *",null,null,{"$f":"IFERROR(IF(TARI=\"670106&\",VLOOKUP(D15,CATALOGO!$B$6:$C$9,2,FALSE),\"\"),\"\")","v":""}]
[null,"Lugar de expedición *",null,null,""]
[null,"Condiciones de pago ***"]
[null,"Confirmación ***"]
[]
[null,"CFDI relacionados **"]
[]
[null,"Tipo de relación",null,null,{"$f":"IFERROR(IF(D22=4,HYPERLINK(\"#FUNDAMENTOR!B46\",\"Sustitución de los CFDI previos\"),VLOOKUP(D22,CATALOGO!$B$33:$C$39,2,FALSE)),\"\")","v":""},null,null,null,"UUID"]
[]
[null,"Nodo factura global **"]
[]
[null,"Periodicidad *",null,null,{"$f":"IFERROR(IF(AND(D26=5,J11<>621),\"Incorrecto\",VLOOKUP(D26,CATALOGO!$B$42:$C$46,2,FALSE)),\"\")","v":""},"Meses *",null,{"$f":"IFERROR(VLOOKUP(G26,CATALOGO!$B$51:$C$68,2,FALSE),\"\")","v":""},"Año *"]
[]
[null,"Nodo conceptos"]
[]
[null,"Clave producto/ servicio *",null,null,null,"No. de identificación **",null,null,"Cantidad *"]
[]
[null,"Clave de unidad *",null,null,null,"Unidad **",null,null,"Descripción *"]
[]
[null,"Valor unitario *",null,null,null,"Importe *",null,null,"Descuento **"]
[]
[null,"Objeto de impuesto *",null,null,null,"Pedimento ***",null,null,"Número ***"]
[null,null,{"$f":"IFERROR(VLOOKUP(D36,OBJETO!$B$4:$C$8,2,FALSE),\"\")","v":""}]
[null,"Nodo de impuestos trasladados **"]
[null,"Base *",null,null,null,"Impuesto *",null,null,"Tipo factor *"]
[]
[null,"Tasa o cuota **",null,null,null,"Importe **"]
[]
[]
[null,"Nodo de impuestos retenidos **"]
[null,"Base *",null,null,null,"Impuesto *",null,null,"Tipo factor *"]
[]
[null,"Tasa o cuota **",null,null,null,"Importe **"]
[]
[]
[null,null,null,null,null,null,null,null,"Subtotal *"]
[null,null,null,null,null,null,null,null,"(-) Descuento **"]
[null,null,null,null,null,null,null,null,"(+) Impuestos trasladados **"]
[null,null,null,null,null,null,null,null,"(-) Impuestos retenidos **"]
[null,null,null,null,null,null,null,null,"(=) Total *"]
[]
[null,"* Campo obligatorio"]
[null,"** Campo opcional"]
[null,"*** Campo condicional"]

{"sheet":"RCFDI","index":3,"n_rows":51,"n_cols":69,"rows_kept":51,"cut":false,"hidden":false,"merged":[[25,1,25,2]]}
[null,null,null,null,null,null,null,null,null,null,null,null,null,null,null,null,null,null,null,null,null,null,null,null,null,null,null,null,null,null,null,null,null,null,null,null,null,null,null,null,null,null,null,null,null,null,null,null,null,null,null,null,null,null,40600,null,null,null,null,null,null,null,null,null,null,null,null,null,"C:\\Users\\Usuario\\Downloads\\PRUEBA\\d119b045-0652-4741-995a-5fac9f178024.xmld119b045-0652-4741-995a-5fac9f178024.xml"]
[]
[]
[]
[null,null,null,{"$f":"IF(PORTADA!$E$80=87965236,HYPERLINK(\"#MENU!C7\",\"MENÚ\"),\"\")","v":"MENÚ"}]
[]
[null,"Folio fiscal","430DC59B-8E45-4EEC-84CE-0FFCB3D7B6A1"]
[null,"Fecha de timbrado","2024-03-08T16:29:54"]
[null,"Fecha de emisión","2024-03-08T14:29:54"]
[null,"Tipo de comprobante","I","Ingreso"]
[null,"Exportación",1,"No aplica"]
[null,"Serie","POSM"]
[null,"Folio",5364611]
[null,"Forma de pago",4,"Tarjeta de crédito"]
[null,"Método de pago","PUE","Pago en una sola exhibición"]
[null,"Moneda","MXN"]
[null,"Tipo de cambio"]
[null,"RFC emisor","ODM950324V2A",""]
[null,"Emisor","OFFICE DEPOT DE MEXICO"]
[null,"Régimen fiscal",601,"General de Ley Personas Morales"]
[null,"RFC receptor","VRE100219CC6"]
[null,"Receptor","VINICOLA RETORNO"]
[null,"Régimen fiscal",626,"Régimen Simplificado de Confianza"]
[null,"Domicilio fiscal receptor",14410]
[null,"Uso del CFDI","G03","Gastos en general."]
[null,"En el caso de que la factura emitida sea global público en general"]
[null,"Periodicidad",null,""]
[null,"Meses",null,""]
[null,"Año"]
[]
[null,"Ruta del archivo importado:","C:\\Users\\Usuario\\Downloads\\PRUEBA\\430DC59B-8E45-4EEC-84CE-0FFCB3D7B6A1.xml"]
[]
[null,"Clave producto/servicio SAT","Clave unidad de medida","Unidad","Cantidad","Descripción","Valor unitario","Importe","Descuento","Objeto del impuesto","Base para IEPS","Tipo factor","Tasa o cuota","Total IEPS trasladado del comprobante","Base para IVA","Tipo  factor","Tasa o cuota","Total IVA trasladado del comprobante","Base retención ISR","Tipo factor","Tasa o cuota","Retención de ISR","Base retención IVA","Tipo factor","Tasa o cuota","Retención IVA","No. de pedimento","Cuenta predial","Impuestos locales"]
[null,26111702,"H87","PIEZA",4,"PILA ENERGIZER MAX 9V 1PZ",165.74080000000001,662.96,null,2,null,null,null,null,662.96,"Tasa",0.08,53.04]
[null,44121708,"H87","PIEZA",1,"MARC PERM TWINTIP C/3 SURTIDOS",68.518500000000003,68.52,null,2,null,null,null,null,68.52,"Tasa",0.08,5.48]
[null,44121701,"XBX","CAJA",1,"BOLIG KILOMETRICO 100 NG",34.259300000000003,34.26,null,2,null,null,null,null,34.26,"Tasa",0.08,2.74]
[null,55121606,"XBX","CAJA",6,"ETIQ RECTANG 3.8X7.6 BCA",23.148199999999999,138.88999999999999,null,2,null,null,null,null,138.88999999999999,"Tasa",0.08,11.11]
[null,14111808,"H87","PIEZA",4,"COMPROBANTE DE GASTOS CARTA, Fecha del pedimento:",59.259300000000003,237.04,null,2,null,null,null,null,237.04,"Tasa",0.08,18.96,null,null,null,null,null,null,null,null,"21  16  1821  1002737"]
[null,44121503,"XPK","NO APLICA",3,"SOBRE OXF COIN NO.5 AM 50PZ",36.1111,108.33,null,2,null,null,null,null,108.33,"Tasa",0.08,8.67]
[null,24111500,"H87","PIEZA",1,"BOLSA REUTIZABLE E IMPERMEABLE",54.629600000000003,54.63,null,2,null,null,null,null,54.63,"Tasa",0.08,4.37]
[null,14111525,"H87","PIEZA",1,"PAPEL OD ECOLÓGICO CTA RESMA",91.67,91.67,9.26,2,null,null,null,null,82.41,"Tasa",0.08,6.59]
[]
[null,"Importe",1396.3000000000002]
[null,"(-) Descuento",9.26]
[null,"(=) Subtotal",1387.0400000000002]
[null,"(+) IEPS",0]
[null,"(+) IVA",110.96000000000002]
[null,"(-) Retención ISR",0]
[null,"(-) Retención IVA",0]
[null,"(+) Impuestos locales",0]
[null,"(+) Total",1498.0000000000002]

{"sheet":"CFDIP","index":4,"n_rows":45,"n_cols":67,"rows_kept":45,"cut":false,"hidden":false,"merged":[[25,1,25,2]]}
[]
[]
[]
[]
[]
[]
[null,"Folio fiscal"]
[null,"Fecha de timbrado",null,null,null,null,null,null,null,null,null,null,null,null,null,null,null,null,null,null,null,null,null,null,null,null,null,null,null,null,null,null,null,null,null,null,null,null,null,null,null,null,null,null,null,null,null,null,null,null,null,null,null,null,null,null,null,null,null,null,null,null,null,null,null,null,{"$f":"IFERROR(AS8-BA8-BE8+BI8+BM8,0)","v":0}]
[null,"Fecha de emisión"]
[null,"Tipo de comprobante"]
[null,"Exportación"]
[null,"Serie"]
[null,"Folio"]
[null,"Forma de pago"]
[null,"Método de pago"]
[null,"Moneda"]
[null,"Tipo de cambio"]
[null,"RFC emisor"]
[null,"Emisor"]
[null,"Régimen fiscal"]
[null,"RFC receptor"]
[null,"Receptor"]
[null,"Régimen fiscal"]
[null,"Domicilio fiscal receptor"]
[null,"Uso del CFDI"]
[null,"Datos del complemento de pagos"]
[null,"Fecha de pago"]
[null,"Forma de pago"]
[null,"MonedaP"]
[null,"TipoCambioP"]
[null,"Monto"]
[null,"NumOperacion"]
[null,"RfcEmisorCtaOrd "]
[null,"NomBancoOrdExt "]
[null,"CtaOrdenante"]
[null,"RfcEmisorCtaBen "]
[null,"CtaBeneficiario"]
[null,"TipoCadPago "]
[null,"CertPago"]
[null,"CadPago"]
[null,"SelloPago"]
[]
[null,"Ruta del archivo importado:"]
[]
[null,"IdDocumento ","Serie","Folio","MonedaDR ","Equivalencia DR","Método de pago DR","No. de parcialidad","Importe saldo anterior","Importe pagado","Importe saldo insoluto","Objeto de impuestos DR","Base para IEPS","Tipo factor","Tasa o cuota","Total IEPS trasladado del comprobante","Base para IVA","Tipo  factor","Tasa o cuota","Total IVA trasladado del comprobante","Base retención ISR","Tipo factor","Tasa o cuota","Retención de ISR","Base retención IVA","Tipo factor","Tasa o cuota","Retención IVA"]

{"sheet":"TIPOS","index":5,"n_rows":51,"n_cols":3,"rows_kept":51,"cut":false,"hidden":false,"merged":[[41,1,41,2],[42,1,42,2],[22,1,22,2],[19,1,19,2],[28,1,28,2],[31,1,31,2],[34,1,34,2],[36,1,36,2],[39,1,39,2],[40,1,40,2],[25,1,25,2],[4,1,4,2],[7,1,7,2],[10,1,10,2],[13,1,13,2],[16,1,16,2]]}
[]
[]
[null,null,{"$f":"IF(PORTADA!$E$80=87965236,HYPERLINK(\"#MENU!C7\",\"MENÚ\"),\"\")","v":"MENÚ"}]
[null,"Apéndice 2 Clasificación de los tipos de CFDI"]
[null,"1. Comprobante de Ingreso. - Se emiten por los ingresos que obtienen los contribuyentes, ejemplo: prestación de servicios, arrendamiento, honorarios, donativos recibidos, enajenación de bienes y mercancías, incluyendo la enajenación que se realiza en operaciones de comercio exterior, etc."]
[]
[null,"Persona moral régimen general de Ley"]
[null,"Obligación de expedir CFDI\nExpedir los comprobantes fiscales por las actividades que realicen.\nFundamento: Artículo 76 fracción II LISR"]
[]
[null,"Persona moral RESICO"]
[null,"Artículo 213 LISR. Las personas morales a que se refiere este Capítulo, además de las obligaciones establecidas en otros artículos de esta Ley y en las demás disposiciones fiscales, cumplirán con las obligaciones señaladas en el Capítulo IX del Título II de la Ley del Impuesto sobre la Renta."]
[]
[null,"Persona moral título III LISR"]
[null,"Expedir y recabar los comprobantes fiscales que acrediten las enajenaciones y erogaciones que efectúen, los servicios que presten o el otorgamiento del uso o goce temporal de bienes.\nFundamento: Artículo 86 fracción II LISR"]
[]
[null,"Persona física actividad empresarial y profesional"]
[null,"Expedir comprobantes fiscales que acrediten los ingresos que perciban.\nFundamento: Artículo 110 fracción III LISR"]
[]
[null,"Persona física plataformas tecnológicas"]
[null,"Deberán expedir comprobantes fiscales que acrediten los ingresos que perciban, en aquellos casos en que la prestación de servicios o la enajenación de bienes se realice de manera independiente a través de las plataformas tecnológicas, aplicaciones informáticas y similares a que se refiere el artículo anterior.\n\nPara los efectos de este inciso, se entiende que la prestación de servicios o la enajenación de bienes son independientes cuando no se realicen por cuenta de las plataformas tecnológicas, aplicaciones informáticas y similares.\nFundamento: Artículo 113-B fracción II inciso c) LISR"]
[]
[null,"Persona fìsica RESICO"]
[null,"Expedir y entregar a sus clientes comprobantes fiscales digitales por Internet por las operaciones que realicen con los mismos.\nFundamento: Artìculo 113-G fracciòn V"]
[]
[null,"Persona física arrendamiento de inmuebles"]
[null,"Expedir comprobantes fiscales por las contraprestaciones recibidas.\nFundamento: Artículo 118 fracción III LISR"]
[]
[null,"Todos los contribuyentes obligados al pago del IVA"]
[null,"Expedir y entregar comprobantes fiscales.\nFundamento: Artículo 32 fracción III LIVA"]
[]
[null,"Contribuyentes del IEPS"]
[null,"Expedir comprobantes fiscales, sin el traslado en forma expresa y por separado del impuesto establecido en esta Ley, salvo tratándose de la enajenación de los bienes a que se refieren los incisos A), D), F), G), I) y J) de la fracción I del artículo 2o. de esta Ley, siempre que el adquirente sea a su vez contribuyente de este impuesto por dichos bienes y así lo solicite.\nFundamento: Artículo 19 fracción II primer párrafo LIEPS"]
[]
[null,"Apéndice 2 Clasificación de los tipos de CFDI"]
[null,"2. Comprobante de Egreso. - Amparan devoluciones, descuentos y bonificaciones para efectos de deducibilidad y también puede utilizarse para corregir o restar un comprobante de ingresos en cuanto a los montos que documenta, como la aplicación de anticipos. Este comprobante es conocido como nota de crédito. "]
[]
[null,"Justificación y soporte documental\nEn el caso de las devoluciones, descuentos o bonificaciones a que se refiere el artículo 25 de la Ley del Impuesto sobre la Renta, se deberán expedir comprobantes fiscales digitales por Internet. En el supuesto de que se emitan comprobantes que amparen egresos sin contar con la justificación y soporte documental que acredite las devoluciones, descuentos o bonificaciones ante las autoridades fiscales, éstos no podrán disminuirse de los comprobantes fiscales de ingresos del contribuyente, lo cual podrá ser verificado por éstas en el ejercicio de las facultades establecidas en este Código.\nFundamento: Artículo 29 fracción VI tercer párrafo CFF"]
[]
[null,"Apéndice 2 Clasificación de los tipos de CFDI"]
[null,"3. Comprobante de Traslado. - Sirve para amparar el transporte, la legal tenencia y estancia de las mercancías objeto del transporte durante su trayecto en territorio nacional. También puede usarse para documentar operaciones de transporte de mercancías al extranjero."]
[null,"4. Comprobante de Recepción de pagos. – Es un CFDI que incorpora un Complemento para recepción de Pagos, el cual debe emitirse en los casos de operaciones con pago en parcialidades o cuando al momento de expedir el CFDI no se reciba el pago de la contraprestación y facilita la conciliación de las facturas contra pagos. "]
[null,"5. Comprobante de Nómina. - Es un CFDI al que se incorpora el complemento recibo de pago de nómina, el cual debe emitirse por los pagos realizados por concepto de remuneraciones de sueldos, salarios y asimilados a estos, es una especie de una factura de egresos."]
[null,"6. Comprobante de Retenciones e información de pagos. - Se expiden en las operaciones en las cuales se informa de la realización de retenciones de impuestos, incluyendo el caso de pagos realizados a residentes en el extranjero para efectos fiscales y las retenciones que se les realicen; este tipo de comprobante no forma parte del Catálogo tipo de comprobante porque éste se genera con el estándar contenido en el rubro II. del Anexo 20"]
[]
[]
[null,"c_TipoDeComprobante","Descripción"]
[null,"I","Ingreso"]
[null,"E","Egreso"]
[null,"T","Traslado"]
[null,"N","Nómina"]
[null,"P","Pago"]

{"sheet":"FUNDAMENTO","index":6,"n_rows":186,"n_cols":6,"rows_kept":186,"cut":false,"hidden":false,"merged":[[7,5,18,5],[56,4,56,5],[57,4,57,5],[58,4,58,5],[59,4,59,5],[60,4,60,5],[61,4,61,5],[62,4,62,5],[63,4,63,5],[64,4,64,5],[65,4,65,5],[66,4,66,5],[70,4,70,5],[67,4,67,5],[68,4,68,5],[69,4,69,5],[71,4,71,5],[72,4,72,5],[73,4,73,5],[74,4,74,5],[75,4,75,5],[78,1,80,1],[76,4,76,5],[77,4,77,5],[78,2,78,5],[79,2,79,5],[80,2,80,5]]}
[]
[]
[null,null,null,{"$f":"IF(PORTADA!$E$80=87965236,HYPERLINK(\"#MENU!C7\",\"MENÚ\"),\"\")","v":"MENÚ"}]
[]
[null,"Campo","Fiscal","Anexo 20","Guía del SAT","Miscelánea fiscal"]
[null,"Fecha de expedición","El lugar y fecha de expedición\nFundamento: Artículo 29-A fracción III CFF\n\nArtículo 39 RCFF.- Para los efectos del artículo 29, segundo párrafo, fracción IV del Código, los contribuyentes deberán remitir al Servicio de Administración Tributaria o al proveedor de certificación de comprobantes fiscales digitales por Internet autorizados por dicho órgano desconcentrado, según sea el caso, el comprobante fiscal digital por Internet, a más tardar dentro de las veinticuatro horas siguientes a que haya tenido lugar la operación, acto o actividad de la que derivó la obligación de expedirlo.","Atributo requerido para la expresión de la fecha y hora de expedición del Comprobante Fiscal Digital por Internet. Se expresa en la forma AAAA\nMM-DDThh:mm:ss y debe corresponder con la hora local donde se expide el comprobante. ","Es la fecha y hora de expedición del comprobante fiscal. Se expresa en la forma AAAA-MM-DDThh:mm:ss y debe corresponder con la hora local donde se expide el comprobante.  \n \nEste dato lo integra el sistema que utiliza el contribuyente para la emisión del comprobante fiscal. ","Obligaciones de los proveedores en el proceso de certificación de CFDI\nQue el periodo entre la fecha de generación del documento y la fecha en la que se pretende certificar no exceda de 72 horas, o que dicho periodo sea menor a cero horas, esto lo validarán haciendo uso del huso horario correspondiente al Código Postal registrado en el campo LugarExpedicion, conforme al catálogo “CodigoPostal” del Anexo 20.\nFundamento: Regla 2.7.2.9 fracción I RMF 2024\n\nExpedición de comprobantes en operaciones con el público en general\nPara los efectos del CFDI donde consten las operaciones realizadas con el público en general, los contribuyentes podrán remitir al SAT o al PCCDFI, según sea el caso, el CFDI a más tardar dentro de las 24 horas siguientes al cierre de las operaciones realizadas de manera diaria, semanal, mensual o bimestral.\nFundamento: Regla 2.7.1.21 quinto párrafo RMF 2024"]
[]
[null,null,null,null,null,"Ley Federal del Consumidor\n\nARTÍCULO 12.- Sin perjuicio de lo dispuesto por la legislación fiscal, el proveedor, tiene obligación de entregar al consumidor factura, recibo o comprobante, en el que consten los datos específicos de la compraventa, servicio prestado u operación realizada. \n\nARTÍCULO 128.- Las infracciones a lo dispuesto por los artículos 7, 8, 10, 10 BIS, 12, 44, 63, 63 Bis, 63 Ter, 63 Quintus, 65, 65 Bis, 65 Bis 1, 65 Bis 2, 65 Bis 3, 65 Bis 4, 65 Bis 5, 65 Bis 6, 65 Bis 7, 66, 73, 73 Bis, 73 Ter, 73 Quáter, 73 Quintus, 74, 76 Bis, 80, 86 Bis, 87, 87 Ter, 92, 92 Ter, 98 Bis, y 121 serán sancionadas con multa de $1,007.20 a $3’939,305.36."]
[]
[]
[]
[]
[]
[]
[]
[]
[]
[]
[]
[]
[]
[]
[]
[]
[]
[]
[]
[]
[]
[]
[]
[]
[]
[]
[]
[]
[]
[]
[]
[]
[]
[]
[]
[]
[]
[]
[]
[]
[]
[]
[]
[]
[null,"Campo","Fiscal","Anexo 20","Guía del SAT","Miscelánea fiscal"]
[null,"Forma de pago","Señalar la forma en que se realizó el pago, ya sea en efectivo, transferencias electrónicas de fondos, cheques nominativos o tarjetas de débito, de crédito, de servicio o las denominadas monederos electrónicos que autorice el Servicio de Administración Tributaria.\nFundamento: Artículo 29-A fracción VII inciso c) CFF\n\n","Atributo condicional para expresar la clave de la forma de pago de los bienes o servicios amparados por el comprobante. ","Se debe registrar la clave de la forma de pago de los bienes, la prestación de los servicios, el otorgamiento del uso o goce, o la forma en que se recibe el donativo contenidos en el comprobante. ","Forma en que se realizó el pago, se señalará conforme al catálogo “c_FormaPago” que señala el Anexo 20, con la opción de indicar la clave 99 “Por definir” en el caso de no haberse recibido el pago de la contraprestación, siempre que una vez que se reciba el pago o pagos se emita por cada uno de ellos un CFDI al que se le incorpore el “Complemento para recepción de pagos” a que se refiere la regla 2.7.1.32.\nLo señalado en esta fracción no será aplicable en los casos siguientes:\na)\tEn las operaciones a que se refiere la regla 3.3.1.34.\nb)\tCuando la contraprestación se pague en una sola exhibición en el momento en el que se expida el CFDI o haya sido pagada antes de la expedición del mismo.\nTratándose de los supuestos establecidos en los incisos antes señalados, los contribuyentes deberán consignar en el CFDI la clave correspondiente a la forma de pago, de conformidad con el catálogo “c_FormaPago” que señala el Anexo 20.\nFundamento: Regla 2.7.1.29 fracción II RMF 2024"]
[]
[null,"c_FormaPago","Descripción","Bancarizado"]
[null,1,"Efectivo","No","4. adj. Dicho del dinero: En monedas o billetes.\n5. m. numerario (‖ moneda acuñada).\nFuente: Diccionario de la Real Academia Española"]
[null,2,"Cheque nominativo","Sí","Artículo 179 LGTOC.- El cheque puede ser nominativo o al portador.\nEl cheque expedido por cantidades superiores a las establecidas por el Banco de México, a través de disposiciones de carácter general que publique en el Diario Oficial de la Federación, siempre será nominativo.\n\nEl cheque que no indique a favor de quién se expide, así como el emitido a favor de persona determinada y que, además, contenga la cláusula “al portador,” se reputará al portador.\n \nEl cheque nominativo puede ser expedido a favor de un tercero, del mismo librador o del librado. El cheque expedido o endosado a favor del librado no será negociable."]
[null,3,"Transferencia electrónica de fondos","Sí","Es el servicio que permite realizar pagos entre clientes de distintos bancos, mediante transferencias electrónicas de fondos. Los usuarios a través de su banco podrán ordenar transferencias de fondos a terceros que tengan su cuenta en cualquier banco, con fecha de aplicación en t+1 y t+2, por cualquier monto.\n\nFuente: https://www.banxico.org.mx/sistemas-de-pago/tef-transferencias-banco-mexi.html#:~:text=Transferencia%20electr%C3%B3nica%20de%20fondos%20(TEF),-Due%C3%B1o%20y%20operador&text=Es%20el%20servicio%20que%20permite,mediante%20transferencias%20electr%C3%B3nicas%20de%20fondos."]
[null,4,"Tarjeta de crédito","Sí","Una tarjeta de crédito es un instrumento de pago personal e intransferible que permite a su titular, y solo al titular, tener al alcance de la mano una cantidad de dinero extra. Ocurre así debido a que la entidad financiera concede, asociada a dicha tarjeta, una línea de crédito. El límite del importe de esta financiación siempre depende de la capacidad de pago del titular.\nFuente: https://www.bbva.es/finanzas-vistazo/ef/tarjetas/que-es-una-tarjeta-de-credito.html"]
[null,5,"Monedero electrónico","Sí","El monedero electrónico es un sistema de pago que se genera a partir de movimientos en línea, ya sea desde  páginas web o aplicaciones. Este cuenta con un  microchip electrónico que se recarga con dinero en efectivo y puede ser utilizado para compras virtuales o físicas.\nFuente: https://www.edenred.mx/blog/monedero-electronico-que-es-y-como-sacarle-provecho"]
[null,6,"Dinero electrónico","Sí","El dinero electrónico está correspondido por saldos en moneda nacional que proveen los bancos centrales, depositados en las cuentas de instituciones financieras, como los bancos. Para usarlo o acceder a él, son necesarias las infraestructuras tecnológicas, cómo SPEI y CODI, entre otras.\nFuente: https://educa.banxico.org.mx/yo-y-la-economia/el-dinero/4/dinero-electronico.html"]
[null,8,"Vales de despensa","No","Concepto de vale de despensa\n3.3.1.15.\tPara los efectos del artículo 27, fracción XI, primer párrafo de la Ley del ISR, se entenderá por vale de despensa, aquel que independientemente del nombre que se le designe, se proporcione a través de monedero electrónico y permita a los trabajadores que lo reciban, utilizarlo en establecimientos comerciales ubicados dentro del territorio nacional, en la adquisición de artículos de consumo que les permitan el mejoramiento en su calidad de vida y en la de su familia.\n\n\tLos vales de despensa, no podrán ser canjeados por dinero, ya sea en efectivo o mediante títulos de crédito, o utilizados para retirar el importe de su saldo en efectivo, directamente del emisor o a través de cualquier tercero, por cualquier medio, incluyendo cajeros automáticos, puntos de venta o cajas registradoras, entre otros, tampoco podrán utilizarse para adquirir bebidas alcohólicas o productos del tabaco.\n\tLISR 27"]
[null,12,"Dación en pago","No","Código Civil Federal\nArtículo 2095.- La obligación queda extinguida cuando el acreedor recibe en pago una cosa distinta en lugar de la debida."]
[null,13,"Pago por subrogación","No","Código Civil Federal\nArtículo 2058.- La subrogación se verifica por ministerio de la ley y sin necesidad de declaración alguna de los interesados:\nI. Cuando el que es acreedor paga a otro acreedor preferente;\nII. Cuando el que paga tiene interés jurídico en el cumplimiento de la obligación;\nIII. Cuando un heredero paga con sus bienes propios alguna deuda de la herencia;\nIV. Cuando el que adquiere un inmueble paga a un acreedor que tiene sobre él un crédito hipotecario anterior a la adquisición."]
[null,14,"Pago por consignación","No","Código Civil Federal\nArtículo 2098.- Si el acreedor rehusare sin justa causa recibir la prestación debida, o dar el documento justificativo de pago, o si fuere persona incierta o incapaz de recibir, podrá el deudor librarse de la obligación haciendo consignación de la cosa."]
[null,15,"Condonación","No","Código Civil Federal\nArtículo 2209.- Cualquiera puede renunciar su derecho y remitir, en todo o en parte, las prestaciones que le son debidas, excepto en aquellos casos en que la ley lo prohíbe.\n\nArtículo 2210.- La condonación de la deuda principal extinguirá las obligaciones accesorias; pero la de éstas dejan subsistente la primera."]
[null,17,"Compensación","No","Código Civil Federal\nArtículo 2185.- Tiene lugar la compensación cuando dos personas reúnen la calidad de deudores y acreedores recíprocamente y por su propio derecho.\n\nArtículo 2186.- El efecto de la compensación es extinguir por ministerio de la ley las dos deudas, hasta la cantidad que importe la menor."]
[null,23,"Novación","No","Código Civil Federal\nArtículo 2213.- Hay novación de contrato cuando las partes en él interesadas lo alteran substancialmente substituyendo una obligación nueva a la antigua."]
[null,24,"Confusión","No","Código Civil Federal\nArtículo 2206.- La obligación se extingue por confusión cuando las calidades de acreedor y deudor se reúnen en una misma persona. La obligación renace si la confusión cesa.\n\nArtículo 2207.- La confusión que se verifica en la persona del acreedor o deudor solidario, sólo produce sus efectos en la parte proporcional de su crédito o deuda.\n\nArtículo 2208.- Mientras se hace la partición de una herencia, no hay confusión cuando el deudor hereda al acreedor o éste a aquél"]
[null,25,"Remisión de deuda","No","Código Civil Federal\nArtículo 2209.- Cualquiera puede renunciar su derecho y remitir, en todo o en parte, las prestaciones que le son debidas, excepto en aquellos casos en que la ley lo prohíbe.\n\nArtículo 2210.- La condonación de la deuda principal extinguirá las obligaciones accesorias; pero la de éstas dejan subsistente la primera."]
[null,26,"Prescripción o caducidad","No","Prescripción\nLa prescripción es un concepto jurídico que habilita el desarrollo de un determinado procedimiento que puede extinguirse después de un cierto período de tiempo.\n\nCaducidad\nLa caducidad es la extinción de un derecho por no haber sido ejercido dentro del plazo establecido por la ley. Esto quiere decir que la ley pierde todo su efecto o derecho por el vencimiento de su plazo.\nFuente: https://abogadosparatusdeudas.es/noticias/diferencias-caducidad-prescripcion-deudas/"]
[null,27,"A satisfacción del acreedor","No","Requisitos de deducciones que corresponden a obligaciones que se extingan con la entrega de dinero\n3.3.1.3.\tPara los efectos del artículo 27, fracción III de la Ley del ISR, se considera que el requisito de deducibilidad consistente en que los pagos cuyo monto exceda de $2,000.00 (dos mil pesos 00/100 M.N.), se efectúen mediante cheque nominativo del contribuyente, tarjeta de crédito, de débito o de servicios, o a través de monederos electrónicos autorizados por el SAT, solo es aplicable a las obligaciones que se cumplan o se extingan con la entrega de una cantidad en dinero, por lo que están exceptuados aquellos casos en los cuales el interés del acreedor queda satisfecho mediante cualquier otra forma de extinción de las obligaciones que den lugar a las contraprestaciones.\n\tLISR 27"]
[null,28,"Tarjeta de débito","Sí","La tarjeta de débito es un tipo de plástico emitido por una entidad financiera con una banda magnética en el reverso y un chip electrónico que guarda información sobre los datos de acceso, el nombre y número de cuenta del titular. Se utiliza para poder efectuar diferentes operaciones financieras y está ligada a una clave o PIN que permite autorizar dichas transacciones.\nFuente: https://www.bbva.com/es/salud-financiera/que-es-una-tarjeta-de-debito-y-como-puedo-usarla/"]
[null,29,"Tarjeta de servicios","Sí","Concepto de tarjeta de servicio\n2.7.1.30.\tPara los efectos de los artículos 29-A, fracción VII, inciso c) y 32-E del CFF, las tarjetas de servicio son aquellas emitidas por empresas comerciales no bancarias en términos de las disposiciones que al efecto expida el Banco de México.\n\tCFF 29-A, 32-E"]
[null,30,"Aplicación de anticipos","No"]
[null,31,"Intermediario pagos","No","Forma de pago usando gestores de pagos\n2.7.1.37.\tPara los efectos de los artículos 29 y 29-A, fracción VII, inciso c) del CFF, así como en los artículos 27, fracción III y 147, fracción IV de la Ley del ISR, en relación con lo señalado en las reglas 2.7.1.29. y 2.7.1.32.; en aquellos casos en los cuales los contribuyentes realicen el pago de las contraprestaciones utilizando para ello los servicios de terceros que funjan como intermediarios, recolectores o gestores de la recepción de dichos pagos y estos terceros no le informen al emisor del CFDI la forma en que recibió el pago, este podrá señalar en los mismos como forma de pago “Intermediario pagos”, conforme al catálogo “c_FormaPago” señalado en el Anexo 20.\n\tLos CFDI en donde se señale como forma de pago “Intermediario pagos”, se considerarán para efectos de los artículos 27, fracción III y 147, fracción IV, de la Ley del ISR, como pagados en efectivo.\n\tLos terceros que funjan como intermediarios, recolectores o gestores de la recepción de pagos, a que se refiere el primer párrafo de esta regla, también deberán expedir el CFDI correspondiente por el costo, cargo o comisión que cobren por sus propios servicios de recepción de estos pagos.\n\tCFF 29, 29-A, LISR 27, 147, RMF 2024 2.7.1.29., 2.7.1.32."]
[null,99,"Por definir","Opcional","Requisitos en la expedición de CFDI\n2.7.1.29.\tPara los efectos del artículo 29-A, fracciones I, III, IV y VII, inciso c) del CFF, los contribuyentes incorporarán en los CFDI que expidan, los requisitos correspondientes conforme a lo siguiente:\nI.\tEl lugar de expedición, se cumplirá señalando el código postal del domicilio fiscal o domicilio del local o establecimiento conforme al catálogo de códigos postales que señala el Anexo 20.\nII.\tForma en que se realizó el pago, se señalará conforme al catálogo “c_FormaPago” que señala el Anexo 20, con la opción de indicar la clave 99 “Por definir” en el caso de no haberse recibido el pago de la contraprestación, siempre que una vez que se reciba el pago o pagos se emita por cada uno de ellos un CFDI al que se le incorpore el “Complemento para recepción de pagos” a que se refiere la regla 2.7.1.32.\nLo señalado en esta fracción no será aplicable en los casos siguientes:\na)\tEn las operaciones a que se refiere la regla 3.3.1.34.\nb)\tCuando la contraprestación se pague en una sola exhibición en el momento en el que se expida el CFDI o haya sido pagada antes de la expedición del mismo.\nTratándose de los supuestos establecidos en los incisos antes señalados, los contribuyentes deberán consignar en el CFDI la clave correspondiente a la forma de pago, de conformidad con el catálogo “c_FormaPago” que señala el Anexo 20.\nIII.\tEl uso fiscal que el receptor le dará al comprobante, se cumplirá señalando la clave correspondiente conforme al catálogo “c_UsoCFDI” y registrando la clave del régimen fiscal en el que tribute el receptor de dicho comprobante conforme al catálogo “c_RegimenFiscal”, que señala el Anexo 20.\n\tCFF 29-A, RMF 2024 2.7.1.32., 3.3.1.34."]
[null,"Forma de pago","Artículo 1o.-B LIVA.- Para los efectos de esta Ley se consideran efectivamente cobradas las contraprestaciones cuando se reciban en efectivo, en bienes o en servicios, aun cuando aquéllas correspondan a anticipos, depósitos o a cualquier otro concepto sin importar el nombre con el que se les designe, o bien, cuando el interés del acreedor queda satisfecho mediante cualquier forma de extinción de las obligaciones que den lugar a las contraprestaciones.\n\nCuando el precio o contraprestación pactados por la enajenación de bienes, la prestación de servicios o el otorgamiento del uso o goce temporal de bienes se pague mediante cheque, se considera que el valor de la operación, así como el impuesto al valor agregado trasladado correspondiente, fueron efectivamente pagados en la fecha de cobro del mismo o cuando los contribuyentes transmitan los cheques a un tercero, excepto cuando dicha transmisión sea en procuración.\n\nSe presume que los títulos de crédito distintos al cheque suscritos a favor de los contribuyentes, por quien adquiere el bien, recibe el servicio o usa o goza temporalmente el bien, constituye una garantía del pago del precio o la contraprestación pactados, así como del impuesto al valor agregado correspondiente a la operación de que se trate. En estos casos se entenderán recibidos ambos conceptos por los contribuyentes cuando efectivamente los cobren, o cuando los contribuyentes transmitan a un tercero los documentos pendientes de cobro, excepto cuando dicha transmisión sea en procuración.\n\nCuando con motivo de la enajenación de bienes, la prestación de servicios o el otorgamiento del uso o goce temporal de bienes, los contribuyentes reciban documentos o vales, respecto de los cuales un tercero asuma la obligación de pago o reciban el pago mediante tarjetas electrónicas o cualquier otro medio que permita al usuario obtener bienes o servicios, se considerará que el valor de las actividades respectivas, así como el impuesto al valor agregado correspondiente, fueron efectivamente pagados en la fecha en la que dichos documentos, vales, tarjetas electrónicas o cualquier otro medio sean recibidos o aceptadas por los contribuyentes."]
[null,null,"Artículo 5o.-C LIEPS.- Para los efectos de esta Ley, se considera que se cobran efectivamente las contraprestaciones correspondientes a los actos o actividades gravadas, cuando se realicen los supuestos que para tal efecto se establecen en la Ley del Impuesto al Valor Agregado."]
[null,null,"En los casos en los que se pague la contraprestación mediante transferencia electrónica de fondos, éstas se considerarán efectivamente cobradas en el momento en que se efectúe dicha transferencia, aun cuando quien reciba el depósito no manifieste su conformidad.\nFundamento: Artículo 17 tercer párrafo CFF."]
[]
[null,"Campo","Fiscal","Anexo 20","Guía del SAT","Miscelánea fiscal"]
[null,"Método de pago","Los contenidos en las disposiciones fiscales, que sean requeridos y dé a conocer el Servicio de Administración Tributaria, mediante reglas de carácter general.\nFundamento: Artículo 29-A fracción IX CFF\n\n","Atributo condicional para precisar la clave del método de pago que aplica para este comprobante fiscal digital por Internet, conforme al Artículo 29 A fracción VII incisos a y b del CFF. ","Se debe registrar la clave que corresponda depende si se paga  en una sola exhibición o en parcialidades, las distintas claves de método de pago se encuentran incluidas en el catálogo  c_MetodoPago. \n \nEjemplo: Si un contribuyente realiza el pago en una sola exhibición debe registrar en el campo de método de pago lo siguiente: \n \nMetodoPago = PUE ","Opción para que en el CFDI se establezca como método de pago “Pago en una sola exhibición”\n2.7.1.39.\tPara los efectos de los artículos 29, párrafos primero, segundo, fracción VI y penúltimo, 29-A, primer párrafo, fracción VII, inciso b) del CFF, y las reglas 2.7.1.29., fracción II y 2.7.1.32., los contribuyentes que no reciban el pago del monto total del CFDI al momento de su expedición, podrán considerarlo como pagado en una sola exhibición para efectos de la facturación, siempre que:\nI.\tSe haya pactado o se estime que el monto total que ampare el comprobante se recibirá a más tardar el último día del mes de calendario en el cual se expidió el CFDI.\nII.\tSeñalen en el CFDI como método de pago “PUE” (Pago en una sola exhibición) y cuál será la forma en que se recibirá dicho pago.\nIII.\tSe realice efectivamente el pago de la totalidad de la contraprestación a más tardar en el plazo señalado en la fracción I de esta regla.\n\tEn aquellos casos en que el pago se realice en una forma distinta a la que se señaló en el CFDI, el contribuyente cancelará el CFDI emitido por la operación y emitirá uno nuevo señalando como forma de pago la que efectivamente corresponda.\n\tEn el caso de que la totalidad del pago de la operación que ampara el CFDI no se realice a más tardar el último día del mes en que se expidió este comprobante, el contribuyente cancelará el CFDI emitido por la operación y emitirá uno nuevo señalando como forma de pago “99” por definir y como método de pago “PPD” pago en parcialidades o diferido, relacionando el nuevo CFDI con el emitido originalmente como “Sustitución de los CFDI previos”, debiendo adicionalmente emitir por el pago o los pagos que efectivamente le realicen, el CFDI con complemento para recepción de pagos que corresponda de conformidad con las reglas 2.7.1.29. y 2.7.1.32.\n\tTratándose de los integrantes del sector financiero que apliquen la facilidad contenida en esta regla, estos podrán considerar para efectos de lo señalado en la fracción I de la misma, incluso los pagos que reciban a más tardar el día 17 del mes inmediato siguiente a aquel en que se emitió el CFDI por el total de la operación, debiendo, en todo caso el receptor del CFDI realizar el acreditamiento del IVA e IEPS en el mes en que el impuesto trasladado haya sido efectivamente pagado.\n\tCFF 29, 29-A, RMF 2024 2.7.1.29., 2.7.1.32."]
[]
[null,"Campo","Fiscal","Anexo 20","Guía del SAT","Miscelánea fiscal"]
[null,"Moneda","Artículo 20 primer párrafo CFF.- Las contribuciones y sus accesorios se causarán y pagarán en moneda nacional. Los pagos que deban efectuarse en el extranjero se podrán realizar en la moneda del país de que se trate.","Atributo requerido para identificar la clave de la moneda utilizada para expresar los montos, cuando se usa moneda nacional se registra MXN. Conforme con la especificación ISO 4217.","Se debe registrar la clave de la moneda utilizada para expresar los montos, cuando se usa moneda nacional se registra “MXN”, conforme con la especificación ISO 4217.\nLas distintas claves de moneda se encuentran incluidas en el catálogo c_Moneda.\nEjemplo:\nMoneda= MXN"]
[]
[null,"Campo","Fiscal","Anexo 20","Guía del SAT","Miscelánea fiscal"]
[null,"Tipo de cambio","Artículo 20 CFF.\n\nTercer párrafo\nPara determinar las contribuciones y sus accesorios se considerará el tipo de cambio a que se haya adquirido la moneda extranjera de que se trate y no habiendo adquisición, se estará al tipo de cambio que el Banco de México publique en el Diario Oficial de la Federación el día anterior a aquél en que se causen las contribuciones. Los días en que el Banco de México no publique dicho tipo de cambio se aplicará el último tipo de cambio publicado con anterioridad al día en que se causen las contribuciones.\n\nCuarto párrafo\nCuando las disposiciones fiscales permitan el acreditamiento de impuestos o de cantidades equivalentes a éstos, pagados en moneda extranjera, se considerará el tipo de cambio que corresponda conforme a lo señalado en el párrafo anterior, referido a la fecha en que se causó el impuesto que se traslada o en su defecto cuando se pague.","Atributo condicional para representar el tipo de cambio FIX conforme con la moneda usada. Es requerido cuando la clave de moneda es distinta de MXN y de XXX. El valor debe reflejar el número de pesos mexicanos que equivalen a una unidad de la divisa señalada en el atributo moneda. Si el valor está fuera del porcentaje aplicable a la moneda tomado del catálogo c_Moneda, el emisor debe obtener del PAC que vaya a timbrar el CFDI, de manera no automática, una clave de confirmación para ratificar que el valor es correcto e integrar dicha clave en el atributo Confirmacion.","Se puede registrar el tipo de cambio FIX conforme a la moneda registrada en el comprobante.\n\nEste campo es requerido cuando la clave de moneda es distinta de “MXN” (Peso Mexicano) y a la clave “XXX” (Los códigos asignados para las transacciones en que intervenga ninguna \nmoneda). \n\nSi el valor está fuera del porcentaje aplicable a la moneda tomado del catálogo c_Moneda, el emisor debe obtener del proveedor de certificación de CFDI que vaya a timbrar el CFDI de manera no automática, una clave de confirmación para ratificar que el valor es correcto e integrar dicha clave en el campo Confirmacion.El límite superior se obtiene al multiplicar el valor publicado del tipo de cambio FIX por la suma de uno más el porcentaje  aplicable a la moneda tomado del catálogo c_Moneda.\n\nEl límite inferior se obtiene al multiplicar el valor publicado del tipo de cambio FIX por la suma de uno menos el porcentaje aplicable a la moneda tomado del catálogo c_Moneda. Si este límite fuera negativo se toma cero.\nNota importante: Esta validación estará vigente únicamente a partir de que el SAT publique en su Portal los procedimientos para generar la clave de confirmación y parametrizar los rangos máximos aplicables.","22. ¿Qué tipo de cambio pueden utilizar los integrantes del sistema financiero en la emisión del CFDI?\nPueden utilizar en tipo de cambio FIX, del último día del mes, de la fecha de emisión o del día del corte del CFDI para operaciones en dólares de los EUA, y en el caso de monedas distintas, el que corresponda conforme a la última tabla de Equivalencias que haya sido publicada por BANXICO\n\nFundamento: Preguntas frecuentes guía de llenado del CFDI SAT."]
[]
[null,"Campo","Fiscal","Anexo 20","Guía del SAT","Miscelánea fiscal"]
[null,"Exportación","Artículo 29 segundo párrafo fracción III CFF.\n\nCumplir los requisitos establecidos en el artículo 29-A de este Código, y los que el Servicio de Administración Tributaria establezca al efecto mediante reglas de carácter general, inclusive los complementos del comprobante fiscal digital por Internet, que se publicarán en el Portal de Internet del Servicio de Administración Tributaria.","Atributo requerido para expresar si el comprobante ampara una operación de exportación.","Se debe registrar la clave con la que se identifica si el comprobante ampara una operación de exportación, las distintas claves vigentes se encuentran incluidas en el catálogo c_Exportacion.\n\n Cuando se registre el valor “02”, se debe incluir el “Complemento para Comercio Exterior”.","Complemento de CFDI en exportación definitiva de mercancías\n2.7.1.19.\tPara los efectos del artículo 29, párrafos primero, y penúltimo del CFF en relación con lo dispuesto establecido en la regla 3.1.38., de las RGCE, al CFDI que se emita con motivo de operaciones de exportación definitiva de mercancías con clave de pedimento “A1” del Apéndice 2 del Anexo 22 de las RGCE, deberá incorporársele el complemento que al efecto se publique en el Portal del SAT.\n\n\tEn el citado complemento se deberá incluir el identificador fiscal del país de residencia para efectos fiscales del receptor del CFDI y, en su caso, del destinatario de la mercancía, o el identificador específico para cada país, que al efecto determine el SAT en su Portal.\n\tCFF 29, RGCE 3.1.38."]
[]
[null,"Campo","Fiscal","Anexo 20","Guía del SAT","Miscelánea fiscal"]
[null,"Lugar de expedición","Artículo 29-A CFF. Los comprobantes fiscales digitales a que se refiere el artículo 29 de este Código, deberán contener los siguientes requisitos:\n\nI. La clave del Registro Federal de Contribuyentes, nombre o razón social de quien los expida y el régimen fiscal en que tributen conforme a la Ley del Impuesto sobre la Renta. Tratándose de contribuyentes que tengan más de un local o establecimiento, se deberá señalar el domicilio del local o establecimiento en el que se expidan los comprobantes fiscales.","Atributo requerido para incorporar el código postal del lugar de expedición del comprobante (domicilio de la matriz o de la sucursal)","Se debe registrar el código postal del lugar de expedición del \ncomprobante (domicilio de la matriz o de la sucursal), debe \ncorresponder a una clave de código postal vigente incluida en el catálogo c_CodigoPostal.\n\nAl ingresar el código postal en este campo se cumple con el \nrequisito de señalar el domicilio y lugar de expedición del comprobante a que se refieren las fracciones I y III del primer \npárrafo del artículo 29-A del CFF, en los términos de la regla \n2.7.1.29., fracción I de la Resolución Miscelánea Fiscal vigente.\n\nEn el caso de que se emita un comprobante fiscal en una sucursal, en dicho comprobante se debe registrar el código postal de ésta, independientemente de que los sistemas de facturación de la empresa se encuentren en un domicilio distinto al de la sucursal. \n\nLos distintos códigos postales se encuentran incluidos en el \ncatálogo c_CodigoPostal.\n\nEjemplo:\nLugarExpedicion= 01000","El lugar de expedición, se cumplirá señalando el código postal del domicilio fiscal o domicilio del local o establecimiento conforme al catálogo de códigos postales que señala el Anexo 20.\n\nFundamento: Regla 2.7.1.29 fracción I RMF\n\n17. Si tengo varias sucursales, pero mis sistemas de facturación se encuentran \nen la matriz ¿qué código postal debo registrar en el campo lugar de expedición en el CFDI?\nEn el caso de que se emita un comprobante fiscal en una sucursal, en dicho comprobante se debe registrar el código postal de esta, independientemente de que los sistemas de facturación de la empresa se encuentren en un domicilio distinto al de la sucursal.\n \nFundamento legal: Artículo 29-A, primer párrafo, fracciones I y III del Código Fiscal de la  Federación, “Anexo 20 Guía de llenado de los comprobantes fiscales digitales por Internet” versión 4.0, publicada en el Portal del SAT"]
[]
[null,"Campo","Fiscal","Anexo 20","Guía del SAT","Miscelánea fiscal"]
[null,"Condiciones de pago",null,"Atributo condicional para expresar las condiciones comerciales aplicables  para el pago del comprobante fiscal digital por Internet. Este atributo puede ser condicionado mediante atributos o complementos.","Se pueden registrar las condiciones comerciales aplicables para el pago del comprobante fiscal, cuando existan éstas y cuando el tipo de comprobante sea “I” (Ingreso) o “E” (Egreso). \n\nEn este campo se podrán registrar de uno hasta 1000 caracteres.\n\nEjemplo:\nCondicionesDePago= 3 meses"]
[]
[null,"Campo","Fiscal","Anexo 20","Guía del SAT","Miscelánea fiscal"]
[null,"Confirmación","Artículo 29-A CFF. \n\nIX. Los contenidos en las disposiciones fiscales, que sean requeridos y dé a conocer el Servicio de Administración Tributaria, mediante reglas de carácter general.","Atributo condicional para registrar la clave de confirmación que entregue el PAC para expedir el comprobante con importes grandes, con un tipo de cambio fuera del rango establecido o con ambos casos. Es requerido cuando se registra un tipo de cambio o un total fuera del rango establecido.","Se debe registrar la clave de confirmación única e irrepetible \nque entrega el proveedor de certificación de CFDI o el SAT a los emisores (usuarios) para expedir el comprobante con importes o tipo de cambio fuera del rango establecido o en ambos casos.\n\nEjemplo: \nConfirmacion= ECVH1\nSe deben registrar valores alfanuméricos de cinco posiciones.\n\nNota importante: El uso de esta clave estará vigente únicamente a partir de que el SAT publique en su Portal los procedimientos para generar la clave de confirmación y parametrizar los montos y rangos máximos aplicables."]
[]
[null,"Campo","Fiscal","Anexo 20","Guía del SAT","Miscelánea fiscal"]
[null,"RFC","Artículo 29-A CFF. Los comprobantes fiscales digitales a que se refiere el artículo 29 de este Código, deberán contener los siguientes requisitos:\n\nI. La clave del Registro Federal de Contribuyentes, nombre o razón social de quien los expida y el régimen fiscal en que tributen conforme a la Ley del Impuesto sobre la Renta. Tratándose de contribuyentes que tengan más de un local o establecimiento, se deberá señalar el domicilio del local o establecimiento en el que se expidan los comprobantes fiscales.","Atributo requerido para registrar la Clave del Registro Federal de Contribuyentes correspondiente al contribuyente emisor del  comprobante.","Se debe registrar la clave del Registro Federal de Contribuyentes del emisor del comproban En el caso de que el emisor sea una persona física, este campo debe contener una longitud de 13 posiciones, si se trata de personas morales debe contener una longitud de 12 posiciones.\n\nEjemplo:\nEn el caso de una persona física se debe registrar: \nRfc= CABL840215RF4\n\nEn el caso de una persona moral se debe registrar: \nRfc= PAL7202161U0"]
[]
[null,"Campo","Fiscal","Anexo 20","Guía del SAT","Miscelánea fiscal"]
[null,"Nombre","Artículo 29-A CFF. Los comprobantes fiscales digitales a que se refiere el artículo 29 de este Código, deberán contener los siguientes requisitos:\n\nI. La clave del Registro Federal de Contribuyentes, nombre o razón social de quien los expida y el régimen fiscal en que tributen conforme a la Ley del Impuesto sobre la Renta. Tratándose de contribuyentes que tengan más de un local o establecimiento, se deberá señalar el domicilio del local o establecimiento en el que se expidan los comprobantes fiscales.","Atributo requerido para registrar el nombre, denominación o razón social del contribuyente inscrito en el RFC, del emisor del comprobante.","Se debe registrar el nombre, denominación o razón social\ninscrito en el RFC del emisor del comprobante.\n\nEl nombre debe corresponder a la clave de RFC registrado en el campo Rfc de este Nodo.\n\nEjemplo:\nEn el caso de una persona física se debe registrar: \nNombre = MARTON ALEEJANDRO SANZI FIERROR\n\nEn el caso de una persona moral se debe registrar: \nNombre = LA PALMA AEI0"]
[]
[null,"Campo","Fiscal","Anexo 20","Guía del SAT","Miscelánea fiscal"]
[null,"Régimen fiscal","Artículo 29-A CFF. Los comprobantes fiscales digitales a que se refiere el artículo 29 de este Código, deberán contener los siguientes requisitos:\n\nI. La clave del Registro Federal de Contribuyentes, nombre o razón social de quien los expida y el régimen fiscal en que tributen conforme a la Ley del Impuesto sobre la Renta. Tratándose de contribuyentes que tengan más de un local o establecimiento, se deberá señalar el domicilio del local o establecimiento en el que se expidan los comprobantes fiscales.","Atributo requerido para incorporar la clave del régimen del contribuyente emisor al que aplicará el efecto fiscal de este comprobante.","Se debe especificar la clave vigente del régimen fiscal del contribuyente emisor bajo el cual se está emitiendo el comprobante.\n\nLas claves de los diversos regímenes se encuentran incluidas en el catálogo c_RegimenFiscal publicado en el Portal del SAT.\n\nEjemplo: En el caso de que el emisor sea una persona moral \ninscrita en el Régimen General de Ley de Personas Morales, \ndebe registrar lo siguiente:\nRegimenFiscal= 601"]
[]
[null,"Campo","Fiscal","Anexo 20","Guía del SAT","Miscelánea fiscal"]
[null,"Factura atributo adquirente","Artículo 29-A CFF. \n\nIX. Los contenidos en las disposiciones fiscales, que sean requeridos y dé a conocer el Servicio de Administración Tributaria, mediante reglas de carácter general.","Atributo condicional para expresar el número de operación proporcionado por el SAT cuando se trate de un comprobante a través de un PCECFDI o un PCGCFDISP.","Se debe registrar el número de operación proporcionado por el SAT cuando se trate de un comprobante a través del adquirente de los productos o servicios siempre que la respuesta del servicio sea en sentido positivo, conforme a la Resolución Miscelánea Fiscal vigente.\n\nCuando el número de operación sea menor a una longitud de 10 posiciones, se deberá completar con ceros a la izquierda hasta completar 10 dígitos.\n\nEjemplo:\nFacAtrAdquirente=00000012345","43.\tPCCFDI. Proveedor de certificación de Comprobante Fiscal Digital por Internet.\n45.\tPCGCFDISP. Proveedor de certificación y generación de Comprobante Fiscal Digital por Internet para el Sector Primario.\n\nSección 2.7.3. De la expedición de CFDI por las ventas realizadas por personas físicas del sector primario; arrendadores de bienes inmuebles, propietarios o titulares que afecten terrenos, bienes o derechos incluyendo derechos reales, ejidales o comunales; mineros; artesanos; enajenantes de vehículos usados, desperdicios industrializables, obras de artes plásticas y antigüedades, por los adquirentes de sus bienes"]
[]
[null,"Campo","Fiscal","Anexo 20","Guía del SAT","Miscelánea fiscal"]
[null,"RFC","Artículo 29-A CFF. \nIV. La clave del Registro Federal de Contribuyentes, nombre o razón social; así como el código postal del domicilio fiscal de la persona a favor de quien se expida, asimismo, se debe indicar la clave del uso fiscal que el receptor le dará al comprobante fiscal.\n\nCuando no se cuente con la clave del registro federal de contribuyentes a que se refiere esta fracción, se señalará la clave genérica que establezca el Servicio de Administración Tributaria mediante reglas de carácter general, considerándose la operación como celebrada con el público en general. \n\nArtículo 8o LIEPS.- No se pagará el impuesto establecido en esta Ley:\nI. Por las enajenaciones siguientes:\nd) Las de cerveza, bebidas refrescantes, puros y otros tabacos labrados, así como las de los bienes a que se refiere el inciso F) de la fracción I del artículo 2o. de esta Ley, que se efectúen al público en general, salvo que el enajenante sea fabricante, productor, envasador, distribuidor o importador de los bienes que enajene. No gozarán del beneficio establecido en este inciso, las enajenaciones de los citados bienes efectuadas por comerciantes que obtengan la mayor parte del importe de sus ingresos de enajenaciones a personas que no forman parte del público en general. No se consideran enajenaciones efectuadas con el público en general cuando por las mismas se expidan comprobantes que cumplan con los requisitos a que se refiere el artículo 29-A del Código Fiscal de la Federación.","Atributo requerido para registrar la Clave del Registro Federal de Contribuyentes correspondiente al contribuyente receptor del  comprobante.","Se debe registrar la clave del Registro Federal de Contribuyentes del receptor del comprobante.\n\n El RFC debe estar contenido en la lista de RFC (l_RFC) inscritos no cancelados en el SAT en caso de que sea diferente del RFC genérico.\n\nEjemplo: En el caso de que el receptor sea una persona física el RFC debe tener una longitud de 13 posiciones, si se trata de personas morales debe tener una longitud de 12 posiciones.\n\nPersona física\nRfc= FIMA420127R44\n\nPersona moral\nRfc= COR391215F4A","Clave en el RFC genérica en CFDI y con residentes en el extranjero\n2.7.1.23.\tPara los efectos del artículo 29-A, fracción IV, segundo párrafo del CFF y 99, fracción III de la Ley del ISR, cuando no se cuente con la clave en el RFC, se consignará la clave genérica en el RFC: XAXX010101000 y cuando se trate de operaciones efectuadas con residentes en el extranjero, que no se encuentren inscritos en el RFC, se señalará la clave genérica en el RFC: XEXX010101000.\n\nEn el caso de contribuyentes residentes en México, que presten servicios de subcontratación de servicios especializados o de ejecución de obras especializadas a residentes en el extranjero que no están obligados a solicitar su inscripción en el RFC, en los CFDI de nómina que deben emitir por los pagos que realicen y que a su vez sean ingresos para sus trabajadores en términos del Título IV, Capítulo I de la Ley del ISR, podrán señalar en el campo “RfcLabora” del elemento o sección del complemento de nómina denominado “SubContratacion” la clave en el RFC genérica a que se refiere el párrafo anterior.\nCFF 29-A, LISR 99\n\nDefinición de público en general para efectos de expedición de CFDI\n2.7.1.46.\tPara los efectos de los artículos 29 y 29-A fracción IV, segundo párrafo del CFF, se entiende por actividades realizadas con el público en general, cuando se registre la clave en el RFC genérica a que se refiere la regla 2.7.1.23., consistente en: XAXX010101000, en el campo Rfc del nodo Receptor del CFDI.\n\tCFF 29, 29-A, RMF 2024 2.7.1.21., 2.7.1.23."]
[]
[null,"Campo","Fiscal","Anexo 20","Guía del SAT","Miscelánea fiscal"]
[null,"Nombre","Artículo 29-A CFF. \n\nIV. La clave del Registro Federal de Contribuyentes, nombre o razón social; así como el código postal del domicilio fiscal de la persona a favor de quien se expida, asimismo, se debe indicar la clave del uso fiscal que el receptor le dará al comprobante fiscal.\n\nCuando no se cuente con la clave del registro federal de contribuyentes a que se refiere esta fracción, se señalará la clave genérica que establezca el Servicio de Administración Tributaria mediante reglas de carácter general, considerándose la operación como celebrada con el público en general. ","Atributo requerido para registrar el nombre(s), primer apellido, segundo apellido, según corresponda, denominación o razón social del \ncontribuyente, inscrito en el RFC, del receptor del comprobante.","Se debe registrar el(los) nombre(s), primer apellido, segundo apellido, según corresponda denominación o razón social registrados en el RFC del contribuyente receptor del comprobante.\n\nEl Nombre debe corresponder a la clave de RFC registrado en el campo Rfc de este Nodo.\n\nEjemplo:\nEn el caso de una persona física se debe registrar: \nNombre = RAFAELI CAMPOSORIO RUÍZO\n\nEn el caso de una persona moral se debe registrar: \nNombre= LA VILLA ESP0"]
[]
[null,"Campo","Fiscal","Anexo 20","Guía del SAT","Miscelánea fiscal"]
[null,"Domicilio fiscal del receptor","Artículo 29-A CFF. \n\nIV. La clave del Registro Federal de Contribuyentes, nombre o razón social; así como el código postal del domicilio fiscal de la persona a favor de quien se expida, asimismo, se debe indicar la clave del uso fiscal que el receptor le dará al comprobante fiscal.\n\n","Atributo requerido para registrar el código postal del domicilio fiscal del  receptor del comprobante.","Se debe registrar el código postal del domicilio fiscal del receptor del comprobante.\n\n El código postal, en caso de que sea diferente de los RFC genéricos, debe estar asociado a la clave de RFC registrado en el campo Rfc de este Nodo.\n\nEjemplo:\nDomicilioFiscalReceptor= 01001"]
[]
[null,"Campo","Fiscal","Anexo 20","Guía del SAT","Miscelánea fiscal"]
[null,"Residencia fiscal","Artículo 29-A CFF. \n\nIX. Los contenidos en las disposiciones fiscales, que sean requeridos y dé a conocer el Servicio de Administración Tributaria, mediante reglas de carácter general.","Atributo condicional para registrar la clave del país de residencia para efectos fiscales del receptor del comprobante, cuando se trate de un extranjero, y que es conforme con la especificación ISO 3166-1 alpha-3.  Es requerido cuando se incluya el complemento de comercio exterior o se registre el atributo NumRegIdTrib.","Cuando el receptor del comprobante sea un residente en el \nextranjero, se debe registrar la clave del país de residencia para efectos fiscales del receptor del comprobante.\n\nEste campo es obligatorio cuando el RFC del receptor es un RFC genérico extranjero, y se incluya el complemento de comercio exterior o se registre el campo NumRegIdTrib.\n\nEjemplo: Si la residencia fiscal de la empresa extranjera receptora del comprobante fiscal se encuentra en Estados Unidos de América, se debe registrar lo siguiente:\nResidenciaFiscal= USA"]
[]
[null,"Campo","Fiscal","Anexo 20","Guía del SAT","Miscelánea fiscal"]
[null,"Número de registro tributario","Artículo 29-A CFF. \n\nIX. Los contenidos en las disposiciones fiscales, que sean requeridos y dé a conocer el Servicio de Administración Tributaria, mediante reglas de carácter general.","Atributo condicional para expresar el número de registro de identidad fiscal del receptor cuando sea residente en el extranjero. Es requerido cuando se incluya el complemento de comercio exterior.","Se captura el número de registro de identidad fiscal del receptor del comprobante fiscal cuando este sea residente en el extranjero.\n\n Este campo es obligatorio cuando se incluya el complemento de comercio exterior.\n Puede conformarse desde uno hasta 40 caracteres.\n Si no existe el campo ResidenciaFiscal, este campo  puede no existir.\n La residencia fiscal debe corresponder con el valor especificado en la columna Formato de Registro de  Identidad Tributaria del catálogo c_Pais.\n\nEjemplo: En el caso de que el receptor del comprobante fiscal sea residente en el extranjero se debe registrar conforme a lo siguiente:\n\nNumRegIdTrib= 121585958"]
[]
[null,"Campo","Fiscal","Anexo 20","Guía del SAT","Miscelánea fiscal"]
[null,"Régimen fiscal","Artículo 29-A CFF. \n\nIX. Los contenidos en las disposiciones fiscales, que sean requeridos y dé a conocer el Servicio de Administración Tributaria, mediante reglas de carácter general.","Atributo requerido para incorporar la clave del régimen fiscal del contribuyente receptor al que aplicará el efecto fiscal de este comprobante.","Se debe registrar la clave vigente del régimen fiscal del contribuyente receptor.\n\n Las claves de los diversos regímenes se encuentran incluidas en el catálogo c_RegimenFiscal publicado en el Portal del SAT.\n Cuando se trate de operaciones con residentes en el extranjero y se registre el valor “XEXX010101000” en este campo se debe registrar la clave “616” Sin obligaciones fiscales. "]
[]
[null,"Campo","Fiscal","Anexo 20","Guía del SAT","Ley del Impuesto Sobre la Renta"]
[null,"USO del CFDI","Artículo 29-A CFF. \n\nIV. La clave del Registro Federal de Contribuyentes, nombre o razón social; así como el código postal del domicilio fiscal de la persona a favor de quien se expida, asimismo, se debe indicar la clave del uso fiscal que el receptor le dará al comprobante fiscal.\n\n","Atributo requerido para expresar la clave del uso que dará a esta factura el receptor del CFDI.","Se debe registrar la clave que corresponda al uso que le dará al comprobante fiscal el receptor.\n\nLa clave que solicite el receptor (física o moral) se registre en \neste campo, debe corresponder con los valores indicados en el catálogo c_UsoCFDI y el valor registrado en el campo RegimenFiscalReceptor, debe corresponder a un valor de la columna Régimen Fiscal Receptor de dicho catálogo.\nEjemplo: \nUsoCFDI= D01\n\nEn el caso de que se emita un CFDI a un residente en el extranjero con RFC genérico (XEXX010101000), en este campo se debe registrar la clave “S01” (Sin efectos fiscales)","Artículo 39 segundo párrafo LISR\nLos contribuyentes que realicen actividades comerciales que consistan en la adquisición y enajenación de mercancías, considerarán únicamente dentro del costo lo siguiente:\n\na)\tEl importe de las adquisiciones de mercancías, disminuidas con el monto de las devoluciones, descuentos y bonificaciones, sobre las mismas, efectuados en el ejercicio.\n\nb)\tLos gastos incurridos para adquirir y dejar las mercancías en condiciones de ser enajenadas.\n\nLos contribuyentes que realicen actividades distintas de las señaladas en el segundo párrafo de este artículo, considerarán únicamente dentro del costo lo siguiente:\n\na)\tLas adquisiciones de materias primas, productos semiterminados o productos terminados, disminuidas con las devoluciones, descuentos y bonificaciones, sobre los mismos, efectuados en el ejercicio.\n\nb)\tLas remuneraciones por la prestación de servicios personales subordinados, relacionados directamente con la producción o la prestación de servicios.\n\nc)\tLos gastos netos de descuentos, bonificaciones o devoluciones, directamente relacionados con la producción o la prestación de servicios.\n\nd)\tLa deducción de las inversiones directamente relacionadas con la producción de mercancías o la prestación de servicios, calculada conforme a la Sección II, del Capítulo II, del Título II de esta Ley."]
[]
[]
[]
[]
[null,"Campo","Fiscal","Anexo 20","Guía del SAT","Miscelánea fiscal"]
[null,"Tipo de relación","Artículo 29-A CFF. \n\nIX. Los contenidos en las disposiciones fiscales, que sean requeridos y dé a conocer el Servicio de Administración Tributaria, mediante reglas de carácter general.","Atributo requerido para indicar la clave de la relación que existe entre éste que se está generando y el o los CFDI previos.","Se debe registrar la clave de la relación que existe entre este comprobante que se está generando y el o los CFDI previos.\n\nLas diferentes claves de Tipo de relación se encuentran incluidas en el catálogo c_TipoRelacion publicado en el Portal del SAT.\n Cuando el tipo de relación tenga la clave “01” o “02”, no se deben registrar notas de crédito y débito con comprobante de tipo “T” (Traslado), “P” (Pago) o “N” (Nómina).\n Cuando el tipo de relación tenga la clave “03”, no se deben registrar devoluciones de mercancías sobre comprobantes de tipo “E” (Egreso), “P” (Pago) o “N” (Nómina). \n Cuando el tipo de relación tenga la clave “04”, si este documento que se está generando es de tipo “I” (Ingreso) o “E” (Egreso), puede sustituir a un comprobante de tipo “I” (Ingreso) o “E” (Egreso), en otro caso debe de sustituir a un comprobante del mismo tipo.\n Cuando el tipo de relación sea “05”, este documento que se está generando debe ser de tipo “T” (Traslado), y los documentos relacionados deben ser un comprobante de  tipo “I” (Ingreso) o “E” (Egreso).\n Cuando el tipo de relación sea “06”, este documento que se está generando debe ser de tipo “I” (Ingreso) o “E” (Egreso) y los documentos relacionados deben ser de tipo “T” (Traslado).\n Cuando el tipo de relación sea “07”, este documento que se está generando debe ser de tipo “I” (Ingreso) o “E” (Egreso) y los documentos relacionados deben ser de tipo “I” (Ingreso) o “E” (Egreso)."]
[]
[null,"Campo","Fiscal","Anexo 20","Guía del SAT","Miscelánea fiscal"]
[null,"UUID","Artículo 29-A CFF. \n\nIX. Los contenidos en las disposiciones fiscales, que sean requeridos y dé a conocer el Servicio de Administración Tributaria, mediante reglas de carácter general.","Atributo requerido para registrar el folio fiscal (UUID) de un CFDI relacionado con el presente comprobante, por ejemplo: Si el CFDI relacionado es un comprobante de traslado que sirve para registrar el movimiento de la mercancía. Si este comprobante se usa como nota de crédito o nota de débito del comprobante relacionado. Si este comprobante es una devolución sobre el comprobante relacionado. Si éste sustituye a una factura cancelada.","Se debe registrar el folio fiscal (UUID) de un comprobante fiscal relacionado con el presente comprobante.\n\nEjemplo: \nUUID= 5FB2822E-396D-4725-8521-CDC4BDD20CCF"]
[]
[null,"Campo","Fiscal","Anexo 20","Guía del SAT","Miscelánea fiscal"]
[null,"Periodicidad","Artículo 29-A CFF. \n\nIX. Los contenidos en las disposiciones fiscales, que sean requeridos y dé a conocer el Servicio de Administración Tributaria, mediante reglas de carácter general.\n\nArtículo 6 CFF.\n\nÚltimo párrafo\nCuando las disposiciones fiscales establezcan opciones a los contribuyentes para el cumplimiento de sus obligaciones fiscales o para determinar las contribuciones a su cargo, la elegida por el contribuyente no podrá variarla respecto al mismo ejercicio.",null,"Campo requerido para registrar el período al que corresponde la información del comprobante global.\n\nCuando el valor de este campo sea “05” el campo RegimenFiscal debe ser “621”.","Expedición de comprobantes en operaciones con el público en general\n2.7.1.21.\tPara los efectos de los artículos 29 y 29-A, fracción IV, segundo párrafo del CFF, 39 del Reglamento del CFF y 113-G, fracción V, segundo párrafo de la Ley del ISR, los contribuyentes podrán elaborar un CFDI diario, semanal o mensual donde consten los importes correspondientes a cada una de las operaciones realizadas con el público en general del periodo al que corresponda y el número de folio o de operación de los comprobantes de operaciones con el público en general que se hubieran emitido, utilizando para ello la clave genérica en el RFC a que se refiere la regla 2.7.1.23. Los contribuyentes personas físicas que tributen en el RIF de conformidad con lo establecido en el Título IV, Capítulo II, Sección II de la Ley del ISR vigente hasta el 31 de diciembre de 2021, en relación con lo señalado en el artículo Segundo, fracción IX de las Disposiciones Transitorias de la Ley del Impuesto sobre la Renta, publicada en el DOF el 12 de noviembre de 2021, podrán elaborar el CFDI de referencia de forma bimestral, incluyendo únicamente el monto total de las operaciones del periodo correspondiente. Tratándose de los contribuyentes personas físicas que tributen en el Régimen Simplificado de Confianza de conformidad con lo señalado en el Título IV, Capítulo II, Sección IV de la Ley del ISR, en los CFDI que emitan por las operaciones realizadas durante el mes de que se trate, deberán incluir únicamente el monto total de las operaciones del periodo correspondiente, y deberán cumplir con lo establecido en el quinto párrafo de esta regla.\n....................................."]
[]
[null,"Campo","Fiscal","Anexo 20","Guía del SAT","Miscelánea fiscal"]
[null,"Meses","Artículo 29-A CFF. \n\nIX. Los contenidos en las disposiciones fiscales, que sean requeridos y dé a conocer el Servicio de Administración Tributaria, mediante reglas de carácter general.",null,"Se debe registrar la clave del mes o los meses al que corresponde la información de las operaciones celebradas con el público en general, las distintas claves vigentes se encuentran incluidas en el catálogo c_Meses.\n Cuando el valor del campo Periodicidad sea “05”(Bimestral), este campo debe contener alguno de los valores “13” (Enero-Febrero), “14” (Marzo-Abril), “15” (Mayo-Junio), “16” (Julio-Agosto), “17” (Septiembre-Octubre) o \n“18” (Noviembre-Diciembre).\n Si el campo Periodicidad contiene un valor diferente de “05”, (Bimestral) este campo debe contener alguno de los valores “01” (Enero), “02”(Febrero), “03” (Marzo), “04”(Abril), “05”(Mayo), “06”(Junio), “07” (Julio), “08”(Agosto), “09”(Septiembre), “10” (Octubre), “11” (Noviembre) o “12” (Diciembre)."]
[]
[null,"Campo","Fiscal","Anexo 20","Guía del SAT","Miscelánea fiscal"]
[null,"Año","Artículo 29-A CFF. \n\nIX. Los contenidos en las disposiciones fiscales, que sean requeridos y dé a conocer el Servicio de Administración Tributaria, mediante reglas de carácter general.",null,"Se debe registrar el año al que corresponde la información del comprobante global.\n\nEl valor registrado debe ser igual al año en curso o al año inmediato anterior considerando el registrado en la Fecha de emisión del comprobante. \n\nEjemplo:\nAño=2022"]
[]
[null,"Campo","Fiscal","Anexo 20","Guía del SAT","Buscador de claves y productos SAT"]
[null,"Clave producto o servicio","Artículo 29-A CFF. \n\nV. La cantidad, unidad de medida y clase de los bienes o mercancías o descripción del servicio o del uso o goce que amparen, estos datos se asentarán en los comprobantes fiscales digitales por Internet usando los catálogos incluidos en las especificaciones tecnológicas a que se refiere la fracción VI del artículo 29 de este Código.","Atributo requerido para expresar la clave del producto o del servicio amparado por el presente concepto. Es requerido y deben utilizar las claves del catálogo de productos y servicios, cuando los conceptos que registren por sus actividades correspondan con dichos conceptos.","En este campo se debe registrar una clave que permita clasificar los conceptos del comprobante como productos o servicios; se deben utilizar las claves de los diversos productos o servicios de conformidad con el catálogo c_ClaveProdServ publicado en el Portal del SAT, cuando los conceptos que se registren por sus actividades correspondan a estos.\n\nPara una mejor ubicación de los productos y servicios que se facturan, puede consultarse el Apéndice 3 de esta Guía.\n\nEn el caso de que la clave de un producto o servicio no se encuentre en el catálogo se debe registrar la clave “01010101”.\n\nBasta con que se clasifique la descripción del bien o servicio \nhasta el tercer nivel, es decir hasta la clase, los primeros seis dígitos de la clave del catálogo (Apéndice 3).\n\nEs importante señalar que la identificación de la clave de producto o servicio que corresponda conforme al catálogo c_ClaveProdServ, será responsabilidad del emisor de la factura, en razón de ser él quien conoce las características y la naturaleza del producto o servicio que comercializa y amparará el comprobante.\n\nEn el caso de que el emisor del comprobante comercialice productos que no hayan sido objeto de transformación o industrialización de su parte –es decir lo compra y tal cual lo vende-, el emisor podrá utilizar la clave del producto registrada por su proveedor en el comprobante que ampara la adquisición de los mismos.","http://pys.sat.gob.mx/PyS/catPyS.aspx "]
[]
[null,"Campo","Fiscal","Anexo 20","Guía del SAT","Miscelánea fiscal"]
[null,"Número de identificación","Artículo 29-A CFF. \n\nIX. Los contenidos en las disposiciones fiscales, que sean requeridos y dé a conocer el Servicio de Administración Tributaria, mediante reglas de carácter general.","Atributo opcional para expresar el número de parte, identificador del producto o del servicio, la clave de producto o servicio, SKU o equivalente, propia de la operación del emisor, amparado por el presente concepto. Opcionalmente se puede utilizar claves del estándar GTIN.","En este campo se puede registrar el número de parte, identificador del producto o del servicio, la clave de producto o servicio, SKU (número de referencia) o equivalente, propia de la operación del contribuyente emisor del comprobante fiscal descrito en el presente concepto.\n Opcionalmente se pueden utilizar claves del estándar GTIN (número global de artículo comercial).\n Puede conformarse desde uno hasta 100 caracteres alfanuméricos.\n\nEjemplo:\nNoIdentificacion= UT421510"]
[]
[null,"Campo","Fiscal","Anexo 20","Guía del SAT","Miscelánea fiscal"]
[null,"Cantidad","Artículo 29-A CFF. \n\nV. La cantidad, unidad de medida y clase de los bienes o mercancías o descripción del servicio o del uso o goce que amparen, estos datos se asentarán en los comprobantes fiscales digitales por Internet usando los catálogos incluidos en las especificaciones tecnológicas a que se refiere la fracción VI del artículo 29 de este Código.","Atributo requerido para precisar la cantidad de bienes o servicios del tipo particular definido por el presente concepto.","En este campo se debe registrar la cantidad de bienes o servicios que correspondan a cada concepto, puede contener de cero hasta seis decimales.\nEjemplo:\nCantidad= 5.55555"]
[]
[null,"Campo","Fiscal","Anexo 20","Guía del SAT","Miscelánea fiscal"]
[null,"Clave de unidad","Artículo 29-A CFF. \n\nV. La cantidad, unidad de medida y clase de los bienes o mercancías o descripción del servicio o del uso o goce que amparen, estos datos se asentarán en los comprobantes fiscales digitales por Internet usando los catálogos incluidos en las especificaciones tecnológicas a que se refiere la fracción VI del artículo 29 de este Código.","Atributo requerido para precisar la clave de unidad de medida estandarizada aplicable para la cantidad expresada en el concepto. La unidad debe corresponder con la descripción del concepto. ","En este campo se debe registrar la clave de unidad de medida estandarizada de conformidad con el catálogo c_ClaveUnidad publicado en el Portal del SAT, aplicable para la cantidad expresada en cada concepto. La unidad debe corresponder con la descripción del concepto. \n \nEjemplo: \nClaveUnidad= KGM "]
[]
[null,"Campo","Fiscal","Anexo 20","Guía del SAT","Miscelánea fiscal"]
[null,"Unidad",null,"Atributo opcional para precisar la unidad de medida propia de la operación del emisor, aplicable para la cantidad expresada en el concepto. La unidad debe corresponder con la descripción del concepto. ","En este campo se puede registrar la unidad de medida del bien o servicio propio de la operación del emisor, aplicable para la cantidad expresada en cada concepto. La unidad debe corresponder con la descripción del concepto. \n \nLa unidad debe corresponder con la ClaveUnidad del catálogo c_ClaveUnidad. \n \nEjemplo: \nUnidad= Kilo ","Concepto de unidad de medida a utilizar en los CFDI\n2.7.1.25.\tPara los efectos del artículo 29-A, fracción V, primer párrafo del CFF, los contribuyentes podrán señalar en los CFDI que emitan, la unidad de medida que utilicen conforme a los usos mercantiles.\n\n\tAsimismo, se deberá registrar la unidad de medida que corresponda con la Clave Unidad del Catálogo “c_ClaveUnidad” señalada en el Anexo 20, en caso de que no se encuentre la clave específica de la unidad de medida que se utilizó conforme a los usos mercantiles los contribuyentes podrán señalar la clave que más se acerque o se asemeje.\n\tCFF 29-A"]
[]
[null,"Campo","Fiscal","Anexo 20","Guía del SAT","Otras disposiciones a considerar"]
[null,"Valor unitario","Artículo 29-A CFF. \n\nV. La cantidad, unidad de medida y clase de los bienes o mercancías o descripción del servicio o del uso o goce que amparen, estos datos se asentarán en los comprobantes fiscales digitales por Internet usando los catálogos incluidos en las especificaciones tecnológicas a que se refiere la fracción VI del artículo 29 de este Código.","Atributo requerido para precisar el valor o precio unitario del bien o servicio cubierto por el presente concepto. ","En este campo se debe registrar el valor o precio unitario del \nbien o servicio por cada concepto, el cual puede contener de \ncero hasta seis decimales. \n \nSi el tipo de comprobante es de “I” (Ingreso), “E” (Egreso) o “N” (Nómina) este valor debe ser mayor a cero, si es de “T” (Traslado) puede ser mayor o igual a cero y si es de “P” (Pago) debe ser igual a cero. \n \nEjemplo: \nValorUnitario= 1230.00 ","Artículo 58-A CFF. Las autoridades fiscales podrán modificar la utilidad o la pérdida fiscal a que se refiere la Ley del Impuesto sobre la Renta, mediante la determinación presuntiva del precio en que los contribuyentes adquieran o enajenen bienes, así como el monto de la contraprestación en el caso de operaciones distintas de enajenación, cuando:\n\nI. \tLas operaciones de que se trate se pacten a menos del precio de mercado o el costo de adquisición sea mayor que dicho precio.\n\nII. \tLa enajenación de los bienes se realice al costo o a menos del costo, salvo que el contribuyente compruebe que la enajenación se hizo al precio de mercado en la fecha de la operación, o que los bienes sufrieron demérito o existieron circunstancias que determinaron la necesidad de efectuar la enajenación en estas condiciones."]
[]
[null,"Campo","Fiscal","Anexo 20","Guía del SAT","Miscelánea fiscal"]
[null,"Importe","Artículo 29-A CFF. \n\nIX. Los contenidos en las disposiciones fiscales, que sean requeridos y dé a conocer el Servicio de Administración Tributaria, mediante reglas de carácter general.","Atributo requerido para precisar el importe total de los bienes o servicios del presente concepto. Debe ser equivalente al resultado de multiplicar la cantidad por el valor unitario expresado en el concepto. No se permiten valores negativos.  ","Se debe registrar el importe total de los bienes o servicios de \ncada concepto. Debe ser equivalente al resultado de multiplicar la cantidad por el valor unitario expresado en el concepto, el cual debe ser calculado por el sistema que genera el comprobante y considerará los redondeos que tenga registrado este campo en el estándar técnico del Anexo 20. No se permiten valores negativos. \n \nEste campo puede contener de cero hasta seis decimales. \n \nEjemplo 1: En este caso se consideró la clave “MXN” (Peso \nMexicano). \n \nImporte= 6150.00 "]
[]
[null,"Campo","Fiscal","Anexo 20","Guía del SAT","Otras disposiciones"]
[null,"Descuento","Artículo 29-A CFF. \n\nIX. Los contenidos en las disposiciones fiscales, que sean requeridos y dé a conocer el Servicio de Administración Tributaria, mediante reglas de carácter general.","Atributo opcional para representar el importe de los descuentos aplicables al concepto. No se permiten valores negativos. ","Se puede registrar el importe de los descuentos aplicables a \ncada concepto, debe tener hasta la cantidad de decimales que tenga registrado en el campo importe del concepto y debe ser menor o igual al campo Importe. No se permiten valores negativos. \n\nEste campo puede contener de cero hasta seis decimales. \n \nEjemplo: \nEn este caso se consideró la clave “MXN” (Peso Mexicano). \nDescuento= 864.10 \n\nLos descuentos no se deben registrar de manera global, se \nregistran por cada uno de los conceptos contenidos dentro del comprobante. ","Persona moral régimen general de Ley\nArtículo 25 LISR. Los contribuyentes podrán efectuar las deducciones siguientes:\n\nI.\tLas devoluciones que se reciban o los descuentos o bonificaciones que se hagan en el ejercicio."]
[]
[null,"Campo","Fiscal","Anexo 20","Guía del SAT","Miscelánea fiscal"]
[null,"Objeto de impuesto","Artículo 29-A CFF. \n\nIX. Los contenidos en las disposiciones fiscales, que sean requeridos y dé a conocer el Servicio de Administración Tributaria, mediante reglas de carácter general.","Atributo requerido para expresar si la operación comercial es objeto o no de impuesto. ","Se debe registrar la clave correspondiente para indicar si la \noperación comercial es objeto o no de impuesto. \n \n Las claves vigentes se encuentran incluidas en el catálogo c_ObjetoImp. \n \n Si el valor registrado en este campo es “02” (Sí objeto de impuesto), se deben desglosar los Impuestos a nivel de Concepto. \n \n Si el valor registrado en este campo es “01” (No objeto de\nimpuesto) o “03” (Sí objeto del impuesto y no obligado al desglose) no se desglosan impuestos a nivel Concepto. "]
[]
[null,"Campo","Fiscal","Anexo 20","Guía del SAT","Miscelánea fiscal"]
[null,"Pedimento","Artículo 29-A CFF. \n\nVIII. Tratándose de mercancías de importación:\na) El número y fecha del documento aduanero, tratándose de ventas de primera mano.\nb) En importaciones efectuadas a favor de un tercero, el número y fecha del documentoaduanero, los conceptos y montos pagados por el contribuyente directamente al\nproveedor extranjero y los importes de las contribuciones pagadas con motivo de la importación.","Atributo requerido para expresar el número del pedimento que ampara la importación del bien que se expresa en el siguiente formato: últimos 2 dígitos del año de validación seguidos por dos espacios, 2 dígitos de la aduana de despacho seguidos por dos espacios, 4 dígitos del número de la patente seguidos por dos espacios, 1 dígito que corresponde al último dígito del año en curso, salvo que se trate de un pedimento consolidado iniciado en el año inmediato anterior o del pedimento original de una rectificación, seguido de 6 dígitos de la numeración progresiva por aduana. ","Se debe registrar el número del pedimento correspondiente a \nla importación del bien, el cual se integra de izquierda a derecha de la siguiente manera: \n \nÚltimos dos dígitos del año de validación seguidos por dos espacios, dos dígitos de la aduana de despacho seguidos por dos espacios, cuatro dígitos del número de la patente seguidos por dos espacios, un dígito que corresponde al último dígito del año en curso, salvo que se trate de un pedimento consolidado, iniciado en el año inmediato anterior o del pedimento original de una rectificación, seguido de seis dígitos de la numeración progresiva por aduana. \n \n Se debe registrar la información en este campo cuando el CFDI no contenga el complemento de comercio exterior (es una venta de primera mano nacional). \n Para validar la estructura de este campo puede consultar la documentación técnica publicada en el Portal del SAT"]
[]
[null,"Campo","Fiscal","Anexo 20","Guía del SAT","Miscelánea fiscal"]
[null,"Número","Artículo 29-A CFF. \n\nV...\nc) Los que se expidan por la obtención de ingresos por arrendamiento y en general por otorgar el uso o goce temporal de bienes inmuebles, deberán contener el número de cuenta predial del inmueble de que se trate o, en su caso, los datos de identificación del certificado de participación inmobiliaria no amortizable.","Atributo requerido para precisar el número de la cuenta predial del inmueble cubierto por el presente concepto, o bien para incorporar los datos de identificación del certificado de participación inmobiliaria no amortizable, tratándose de arrendamiento. ","Se debe registrar el número de la cuenta predial del inmueble cubierto por cada concepto o bien, para incorporar los datos de identificación del certificado de participación inmobiliaria no amortizable, si se trata de arrendamiento. \n \nPuede conformarse desde uno hasta 150 dígitos. \n \nEjemplo:  \nNumero= 15956011002"]

{"sheet":"FUNDAMENTOR","index":7,"n_rows":54,"n_cols":4,"rows_kept":54,"cut":false,"hidden":false,"merged":[[43,2,43,3],[14,1,20,1],[19,2,19,3],[20,2,20,3],[21,2,21,3],[39,2,39,3],[53,2,53,3],[8,2,8,3],[9,2,9,3],[10,2,10,3],[11,2,11,3],[51,2,51,3],[45,2,45,3],[47,1,47,3],[48,2,48,3],[49,2,49,3],[48,1,49,1],[4,1,11,1],[41,2,41,3]]}
[]
[null,null,{"$f":"IF(PORTADA!$E$80=87965236,HYPERLINK(\"#MENU!C7\",\"MENÚ\"),\"\")","v":"MENÚ"}]
[]
[null,"Campo","Contribuyente receptor","Requisito de las deducciones"]
[null,"Fecha de expedición","Persona moral régimen general de Ley","Que al realizar las operaciones correspondientes o a más tardar el último día del ejercicio se reúnan los requisitos que para cada deducción en particular establece esta Ley. Tratándose del comprobante fiscal a que se refiere el primer párrafo de la fracción III de este artículo, éste se obtenga a más tardar el día en que el contribuyente deba presentar su declaración. Respecto de la documentación comprobatoria de las retenciones y de los pagos a que se refieren las fracciones V y VI de este artículo, respectivamente, los mismos se realicen en los plazos que al efecto establecen las disposiciones fiscales, y la documentación comprobatoria se obtenga en dicha fecha. Tratándose de las declaraciones informativas a que se refieren los artículos 76 de esta Ley, y 32, fracciones V y VIII de la Ley del Impuesto al Valor Agregado, éstas se deberán presentar en los plazos que al efecto establece el citado artículo 76 y contar a partir de esa fecha con los comprobantes fiscales correspondientes. Además, la fecha de expedición de los comprobantes fiscales de un gasto deducible deberá corresponder al ejercicio por el que se efectúa la deducción.\nFundamento: Artículo 27 fracción XVIII primer párrafo LISR"]
[null,null,"Persona moral RESICO","Que al realizar las operaciones correspondientes o a más tardar el último día del ejercicio, se reúnan los requisitos que para cada deducción en particular establece esta Ley. Tratándose únicamente de los comprobantes fiscales a que se refiere el primer párrafo de la fracción III del artículo 27 de esta Ley, éstos se obtengan a más tardar el día en que el contribuyente deba presentar su declaración de pago provisional y la fecha de expedición de dicho comprobante fiscal deberá corresponder a dicho periodo de pago.\nFundamento: Artículo 210 fracción VIII LISR"]
[null,null,"Persona física actividad empresarial y profesional","Que al realizar las operaciones correspondientes o a más tardar el último día del ejercicio, se reúnan los requisitos que para cada deducción en particular establece esta Ley. Tratándose únicamente de los comprobantes fiscales a que se refiere el primer párrafo de la fracción III del artículo 27 de esta Ley, estos se obtengan a más tardar el día en que el contribuyente deba presentar su declaración del ejercicio y la fecha de expedición de dicho comprobante fiscal deberá corresponder al ejercicio en el que se efectúa la deducción.\nFundamento: Artículo 105 fracción VIII LISR"]
[null,null,"Persona física arrendamiento de inmuebles","Que al realizar las operaciones correspondientes o a más tardar el último día del ejercicio, se reúnan los requisitos que para cada deducción en lo particular establece esta Ley. Tratándose únicamente del comprobante fiscal a que se refiere el primer párrafo de la fracción IV de este artículo, éste se obtenga a más tardar el día en que el contribuyente deba presentar su declaración del ejercicio y la fecha de expedición del comprobante fiscal deberá corresponder al ejercicio en el que se efectúa la deducción. Tratándose de las declaraciones informativas a que se refieren los artículos 76 de esta Ley y 32, fracciones V y VIII de la Ley del Impuesto al Valor Agregado, éstas se deberán presentar en los plazos que al efecto establece el citado artículo 76 y contar a partir de esa fecha con los comprobantes fiscales correspondientes.\nFundamento: Artículo 147 fracción VIII LISR"]
[null,null,"Requisito de acreditamiento del IVA"]
[null,null,"Que el impuesto al valor agregado trasladado al contribuyente haya sido efectivamente pagado en el mes de que se trate\nFundamento: Artículo 5 fracción III LIVA"]
[null,null,"Requitiso de acreditamiento IEPS"]
[null,null,"Que el impuesto que le haya sido trasladado al contribuyente y que éste pretenda acreditar, haya sido efectivamente pagado a quien efectuó dicho traslado.\nFundamento: Artículo 4 fracción III LIEPS"]
[]
[null,"Campo","Contribuyente receptor","Requisito de las deducciones"]
[null,"Forma de pago","Persona moral régimen general de Ley","Estar amparadas con un comprobante fiscal y que los pagos cuyo monto exceda de $2,000.00 se efectúen mediante transferencia electrónica de fondos desde cuentas abiertas a nombre del contribuyente en instituciones que componen el sistema financiero y las entidades que para tal efecto autorice el Banco de México; cheque nominativo de la cuenta del contribuyente, tarjeta de crédito, de débito, de servicios, o los denominados monederos electrónicos autorizados por el Servicio de Administración Tributaria.\n\n\tTratándose de la adquisición de combustibles para vehículos marítimos, aéreos y terrestres, el pago deberá efectuarse en la forma señalada en el párrafo anterior, aun cuando la contraprestación de dichas adquisiciones no excedan de $2,000.00 y en el comprobante fiscal deberá constar la información del permiso vigente, expedido en los términos de la Ley de Hidrocarburos al proveedor del combustible y que, en su caso, dicho permiso no se encuentre suspendido, al momento de la expedición del comprobante fiscal.\nFundamento: Artículo 27 fracción III segundo y tercer párrafo LISR"]
[null,null,"Persona moral RESICO","Para los efectos de este artículo, se estará a lo dispuesto en las fracciones aplicables del artículo 27 de esta Ley.\nFundamento: Artículo 210 último párrafo LISR"]
[null,null,"Persona física actividad empresarial y profesional","Para los efectos de esta sección, se estará a lo dispuesto en el artículo 27, fracciones III, IV, V, VI, X, XI, XIII, XIV, XVII, XVIII, XIX y XXI de esta Ley.\nFundamento: Artículo 105 último párrafo LISR"]
[null,null,"Persona física arrendamiento de inmuebles","Estar amparada con el comprobante fiscal y que los pagos cuya contraprestación exceda de $2,000.00, se efectúen mediante transferencia electrónicas de fondos desde cuentas abiertas a nombre del contribuyente en instituciones que componen el sistema financiero y las entidades que para tal efecto autorice el Banco de México; cheque nominativo de la cuenta del contribuyente, tarjeta de crédito, débito, de servicios, o a través de los denominados monederos electrónicos autorizados por el Servicio de Administración Tributaria.\n\n\tLos pagos que en los términos de esta fracción deban efectuarse mediante cheque nominativo del contribuyente, también podrán realizarse mediante traspasos de cuentas en instituciones de crédito o casas de bolsa del propio contribuyente.\nFundamento: Artículo 147 fracción IV tercer y cuarto párrafo LISR"]
[null,null,"Persona moral régimen general de lay, RESICO, persona física actividad empresarial y profesional","Requisitos de deducciones que corresponden a obligaciones que se extingan con la entrega de dinero\n3.3.1.3.\tPara los efectos del artículo 27, fracción III de la Ley del ISR, se considera que el requisito de deducibilidad consistente en que los pagos cuyo monto exceda de $2,000.00 (dos mil pesos 00/100 M.N.), se efectúen mediante cheque nominativo del contribuyente, tarjeta de crédito, de débito o de servicios, o a través de monederos electrónicos autorizados por el SAT, solo es aplicable a las obligaciones que se cumplan o se extingan con la entrega de una cantidad en dinero, por lo que están exceptuados aquellos casos en los cuales el interés del acreedor queda satisfecho mediante cualquier otra forma de extinción de las obligaciones que den lugar a las contraprestaciones.\n\tLISR 27"]
[null,null,"Requisito de acreditamiento del IVA"]
[null,null,"Que el impuesto al valor agregado trasladado al contribuyente haya sido efectivamente pagado en el mes de que se trate\nFundamento: Artículo 5 fracción III LIVA"]
[]
[]
[]
[]
[]
[]
[]
[]
[]
[]
[]
[]
[]
[]
[]
[]
[]
[]
[null,null,"Fuente: https://www.internet2.scjn.gob.mx/red2/comunicados/noticia.asp?id=7277  "]
[]
[null,null,"Jurisprudencia número IX-J-SS-72 del Pleno Jurisdiccional de la Sala Superior del Tribunal Federal de Justicia Administrativa, en sesión del 14 de junio de 2023\n\nDEVOLUCIÓN DEL IMPUESTO AL VALOR AGREGADO.- LOS COMPROBANTES FISCALES DE INGRESOS DEBEN CUMPLIR CON LOS REQUISITOS QUE REFIEREN LOS ARTÍCULOS 29 Y 29-A DEL CÓDIGO FISCAL DE LA FEDERACIÓN (LEGISLACIONES VIGENTES EN 2016, 2017 y 2018).- El artículo 5o. de la Ley del Impuesto al Valor Agregado no dispone expresamente que los comprobantes fiscales de ingresos en donde conste que el impuesto al valor agregado fue trasladado expresamente y por separado por el contribuyente deban ser emitidos en el periodo en el que se obtuvieron; sin embargo, para reconocer el derecho de un saldo a favor de acuerdo con la mecánica del acreditamiento del impuesto al valor agregado, la autoridad administrativa debe atender lo dispuesto en los artículos 1o., 2o.-A, 5o.-D, 32, fracción III de la Ley del Impuesto al Valor Agregado en relación con los numerales 29, 29-A, fracción IV del Código Fiscal de la Federación, y 39 de su Reglamento, esto es, verificar que los comprobantes fiscales cumplan, entre otros requisitos, el que hayan sido expedidos en el periodo en que se realizó la operación, además de que, se debe sujetar a la época o tiempo de pago del impuesto para que sean considerados como los medios de convicción mediante los cuales se pretenda acreditar el impuesto al valor agregado. En ese orden de ideas, si el comprobante fiscal de ingreso no cumple con lo antes referido resulta inconcuso que la autoridad válidamente podrá negar la devolución de saldo a favor por concepto del impuesto al valor agregado, pues no puede ser utilizado como medio para sustentar el acreditamiento y por consiguiente a la devolución, por esa razón no resulta factible dejar a discreción del contribuyente la fecha de expedición del referido comprobante.\nFuente: https://www.tfja.gob.mx/servicios/ix-epoca/ "]
[]
[null,"Tipo de cambio","Se dará el tratamiento que esta Ley establece para los intereses, a las ganancias o pérdidas cambiarias, devengadas por la fluctuación de la moneda extranjera, incluyendo las correspondientes al principal y al interés mismo. La ganancia y la pérdida cambiaria no podrá ser menor ni exceder, respectivamente, de la que resultaría de considerar el tipo de cambio para solventar obligaciones denominadas en moneda extranjera pagaderas en la República Mexicana establecido por el Banco de México, que al efecto se publique en el Diario Oficial de la Federación, correspondiente al día en que se perciba la ganancia o se sufra la pérdida correspondiente.\nFundamento: Artículo 8 sexto párrafo LISR"]
[]
[null,"Tipo de relación","Criterio PRODECON\n22/2020/CTN/CS-SASEN (Aprobado 7ma. Sesión Ordinaria 27/08/2020)\nCFDI. EL QUE SE LLEVE A CABO SU CANCELACIÓN Y SUSTITUCIÓN NO AFECTA LA DEDUCIBILIDAD O EL ACREDITAMIENTO QUE SE SUSTENTE EN ELLOS, EN EL EJERCICIO FISCAL EN QUE ORIGINALMENTE SE EXPIDIERON, SIEMPRE QUE DICHA SUSTITUCIÓN CUMPLA CON LO ESTABLECIDO PARA TAL EFECTO EN LAS REGLAS DE LA RESOLUCIÓN MISCELÁNEA FISCAL VIGENTE. De conformidad con las reglas 2.7.1.38. y 2.7.1.39. de la Resolución Miscelánea Fiscal (RMF) para 2020, cuando se cancele un comprobante fiscal digital por internet (CFDI) pero la operación subsista, ya sea con o sin aceptación del receptor, se podrá emitir un nuevo CFDI el cual deberá relacionarse con el ya cancelado y señalar que aquél lo sustituye, ello de acuerdo con la guía de llenado que señala el Anexo 20, contenido “IV. Generalidades” de la Segunda Resolución de Modificaciones a la RMF para 2017, cuya aplicación se prorroga mediante el artículo tercero transitorio de la RMF 2020. En este sentido, PRODECON considera que cuando los contribuyentes emiten CFDI y éstos son cancelados por error o inconsistencias en los mismos, tienen derecho a corregir dicha situación sustituyéndolos, sin que la cancelación de los primeros, pueda afectar la deducibilidad para el impuesto sobre la renta (ISR) y el acreditamiento del impuesto al valor agregado (IVA) en el ejercicio en que originalmente se expidieron, es decir, los efectos fiscales que en su momento el comprobante fiscal generó, se mantienen si se emite un CFDI en sustitución, ello siempre y cuando dicha sustitución se realice cumpliendo con los requisitos establecidos en las reglas antes citadas."]
[]
[null,"RFC emisor que se encuentra en el listado de operaciones simuladas"]
[null,"RFC emisor   ","Artículo 69-B octavo párrafo CFF\nLas personas físicas o morales que hayan dado cualquier efecto fiscal a los comprobantes fiscales expedidos por un contribuyente incluido en el listado a que se refiere el párrafo cuarto de este artículo, contarán con treinta días siguientes al de la citada publicación para acreditar ante la propia autoridad, que efectivamente adquirieron los bienes o recibieron los servicios que amparan los citados comprobantes fiscales, o bien procederán en el mismo plazo a corregir su situación fiscal, mediante la declaración o declaraciones complementarias que correspondan, mismas que deberán presentar en términos de este Código.\n\nNoveno párrafo\nEn caso de que la autoridad fiscal, en uso de sus facultades de comprobación, detecte que una persona física o moral no acreditó la efectiva prestación del servicio o adquisición de los bienes, o no corrigió su situación fiscal, en los términos que prevé el párrafo anterior, determinará el o los créditos fiscales que correspondan. Asimismo, las operaciones amparadas en los comprobantes fiscales antes señalados se considerarán como actos o contratos simulados para efecto de los delitos previstos en este Código."]
[null,null,"Procedimiento para acreditar que efectivamente se adquirieron los bienes o recibieron los servicios que amparan los comprobantes fiscales\nRegla 1.5. RMF.\tPara los efectos del artículo 69-B, antepenúltimo párrafo del CFF, las personas físicas y morales que hayan dado cualquier efecto fiscal a los CFDI expedidos por los contribuyentes incluidos en el listado definitivo a que se refiere el cuarto párrafo del referido artículo, podrán acreditar que efectivamente adquirieron los bienes o recibieron los servicios que amparan dichos comprobantes, o bien, corregir su situación fiscal dentro del plazo de treinta días siguientes al de la publicación del listado en el DOF y en el Portal del SAT, ello de conformidad con la ficha de trámite 157/CFF “Informe y documentación que deberán presentar los contribuyentes a que se refiere la regla 1.5. para acreditar que efectivamente recibieron los servicios o adquirieron los bienes que amparan los comprobantes fiscales que les expidieron o que corrigieron su situación fiscal”, contenida en el Anexo 1-A.\nLa autoridad podrá requerir información o documentación adicional, a efecto de resolver lo que en derecho proceda. El contribuyente contará con un plazo de diez días contados a partir del día hábil siguiente a aquel en que haya surtido efectos la notificación del requerimiento, para proporcionar la información y documentación solicitada, dicho plazo se podrá ampliar por diez días más, siempre que el contribuyente presente su solicitud dentro del plazo inicial de diez días.\nTranscurrido el plazo a que se refiere el párrafo anterior, en caso de que el contribuyente no proporcione la información y documentación requerida, o bien se proporcione incompleta, la autoridad valorará su situación únicamente con las pruebas aportadas y resolverá lo que en derecho proceda.\nEl plazo máximo con el que contará la autoridad para resolver si el contribuyente acreditó que efectivamente adquirió los bienes o recibió los servicios que amparan dichos comprobantes, será de treinta días contados a partir del día en que presente su solicitud de aclaración, o bien, de que se tenga por cumplido el requerimiento de información.\nCFF 69-B"]
[]
[null,"Clave producto / servicio, campo DESCRIPCIÓN","EROGACIONES ESTRICTAMENTE INDISPENSABLES. LA PROCEDENCIA DE SU DEDUCIBILIDAD EN EL IMPUESTO SOBRE LA RENTA NO DEPENDE DE LA FORMA EN QUE FUERON DESCRITAS EN EL COMPROBANTE FISCAL QUE LAS AMPARE, SINO DE LA NATURALEZA DE LA OPERACIÓN QUE LES DIO ORIGEN.- En criterios reiterados de la Suprema Corte de Justicia de la Nación se ha sostenido que el requisito de procedencia de las deducciones de ser “estrictamente indispensables para los fines de la actividad del contribuyente”, a que refiere la fracción I del artículo 31 de la Ley del Impuesto sobre la Renta, se encuentra vinculado con la consecución del objeto social de la empresa, es decir, debe tratarse de un gasto necesario para que se cumplimenten en forma cabal sus actividades, de manera que de no realizarlo, estas tendrían que disminuirse o suspenderse, para lo cual deberá tomarse en consideración no solo las erogaciones que correspondan a la actividad preponderante del contribuyente, sino de aquellas que corresponda a una actividad lícita que se inscriba entre las que puede llevar a cabo el contribuyente en el desarrollo de su objeto social, las cuales, de reportar ganancias, estarían gravadas, y que, aun si finalmente no generan ingresos, cuando menos se trata de operaciones en las que se involucran los causantes con la intención de generarlos. A la luz de los criterios de nuestro Máximo Tribunal, el carácter estrictamente indispensable no depende de la forma en la cual se haya conceptualizado en el comprobante fiscal que ampare la erogación llevada a cabo por el contribuyente, sino de la naturaleza misma de la operación que dio origen al pago de la contraprestación. En tal sentido, para determinar si un gasto es estrictamente indispensable, debe valorarse el acto con motivo del cual el contribuyente efectuó la erogación que pretende deducir, para así determinar si tal erogación se encuentra directamente vinculada con la consecución de su objeto social.\n\nPRECEDENTE:\n\nVI-P-2aS-745\n\nJuicio Contencioso Administrativo Núm. 12427/06-17-07-5/1144/10-S2-08-02.- Resuelto por la Segunda Sección de la Sala Superior del Tribunal Federal de Justicia Fiscal y Administrativa, en sesión de 3 de marzo de 2011, por unanimidad de 5 votos a favor.- Magistrada Ponente: Olga Hernández Espíndola.- Secretario: Lic. Juan Manuel Ángel Sánchez.\n\n(Tesis aprobada en sesión de 24 de marzo de 2011)            "]
[]
[null,"Objeto de impuesto","Persona moral régimen general de Ley\nArtículo 27 LISR. Las deducciones autorizadas en este Título deberán reunir los siguientes requisitos:\nVI.\tQue cuando los pagos cuya deducción se pretenda realizar se hagan a contribuyentes que causen el impuesto al valor agregado, dicho impuesto se traslade en forma expresa y por separado en el comprobante fiscal correspondiente. Asimismo, deberán cumplir con la obligación de retención y entero del impuesto al valor agregado que, en su caso, se establezca en la Ley de la materia.\n\nPersona moral RESICO\nArtículo 210 LISR. Las deducciones autorizadas en este Capítulo, además de cumplir con los requisitos establecidos en otras disposiciones fiscales, deberán reunir los siguientes:\n\nÚltimo párrafo\nPara los efectos de este artículo, se estará a lo dispuesto en las fracciones aplicables del artículo 27 de esta Ley.\n\nPersona física actividad empresarial y profesional\nArtículo 105 LISR. Las deducciones autorizadas en esta Sección, además de cumplir con los requisitos establecidos en otras disposiciones fiscales, deberán reunir los siguientes:\n\nÚltimo párrafo\nPara los efectos de esta sección, se estará a lo dispuesto en el artículo 27, fracciones III, IV, V, VI, X, XI, XIII, XIV, XVII, XVIII, XIX y XXI de esta Ley.\n\nPersona física arrendamiento de inmuebles\nArtículo 147 LISR. Las deducciones autorizadas en este Título para las personas físicas que obtengan ingresos de los Capítulos III, IV y V de este Título, deberán reunir los siguientes requisitos:\n\nXIV.\tQue cuando los pagos cuya deducción se pretenda, se hagan a contribuyentes que causen el impuesto al valor agregado, dicho impuesto se traslade en forma expresa y por separado en el comprobante fiscal."]

{"sheet":"DESCRIPCIÓN","index":8,"n_rows":114,"n_cols":4,"rows_kept":114,"cut":false,"hidden":false,"merged":[]}
[]
[null,null,null,{"$f":"IF(PORTADA!$E$80=87965236,HYPERLINK(\"#MENU!C7\",\"MENÚ\"),\"\")","v":"MENÚ"}]
[]
[]
[]
[]
[]
[]
[]
[]
[]
[]
[]
[]
[]
[]
[]
[]
[]
[]
[]
[]
[]
[]
[]
[]
[]
[]
[]
[]
[]
[]
[]
[]
[]
[]
[]
[]
[]
[]
[]
[]
[]
[]
[]
[]
[]
[]
[]
[]
[]
[]
[]
[]
[]
[]
[]
[]
[]
[]
[]
[]
[]
[]
[]
[]
[]
[]
[]
[]
[]
[]
[]
[]
[]
[]
[]
[]
[]
[]
[]
[]
[]
[]
[]
[]
[]
[]
[]
[]
[]
[]
[]
[]
[]
[]
[]
[]
[null,"Sector primario RESICO persona física"]
[]
[]
[]
[]
[]
[]
[]
[]
[]
[]
[]
[]
[]
[]
[null,"Factura global público en general"]

{"sheet":"RETENCION","index":9,"n_rows":9,"n_cols":3,"rows_kept":9,"cut":false,"hidden":false,"merged":[[5,1,6,1]]}
[]
[null,{"$f":"IF(PORTADA!$E$80=87965236,HYPERLINK(\"#MENU!C7\",\"MENÚ\"),\"\")","v":"MENÚ"}]
[]
[null,"Régimen 606 solo persona física","Artículo 116 quinto párrafo LISR\nCuando los ingresos a que se refiere este Capítulo se obtengan por pagos que efectúen las personas morales, éstas deberán retener como pago provisional el monto que resulte de aplicar la tasa del 10% sobre el monto de los mismos, sin deducción alguna, debiendo proporcionar a los contribuyentes comprobante fiscal en el que conste el monto del impuesto retenido; dichas retenciones deberán enterarse, en su caso, conjuntamente con las señaladas en el artículo 96 de esta Ley. El impuesto retenido en los términos de este párrafo podrá acreditarse contra el que resulte de conformidad con el segundo párrafo de este artículo."]
[null,"Régimen 612 solo en el caso de servicios profesionales","Artículo 106 quinto párrafo LISR\nCuando los contribuyentes presten servicios profesionales a las personas morales, éstas deberán retener, como pago provisional, el monto que resulte de aplicar la tasa del 10% sobre el monto de los pagos que les efectúen, sin deducción alguna, debiendo proporcionar a los contribuyentes comprobante fiscal en el que conste el monto del impuesto retenido, el cual deberá enterarse, en su caso, conjuntamente con las retenciones señaladas en el artículo 96 de esta Ley. El impuesto retenido en los términos de este párrafo será acreditable contra el impuesto a pagar que resulte en los pagos provisionales de conformidad con este artículo."]
[null,"Régimen 626 solo persona física","Artículo 113-J. Cuando los contribuyentes a que se refiere el artículo 113-E de esta Ley realicen actividades empresariales, profesionales u otorguen el uso o goce temporal de bienes, a personas morales, estas últimas deberán retener, como pago mensual, el monto que resulte de aplicar la tasa del 1.25% sobre el monto de los pagos que les efectúen, sin considerar el impuesto al valor agregado, debiendo proporcionar a los contribuyentes el comprobante fiscal en el que conste el monto del impuesto retenido, el cual deberá enterarse por dicha persona moral a más tardar el día 17 del mes inmediato posterior a aquél al que corresponda el pago.\n\nEl impuesto retenido en los términos de este artículo será considerado en el pago mensual que deban presentar las personas físicas."]
[null,null,"Excepción para las personas morales de retener a las personas físicas dedicadas a las actividades agrícolas, ganaderas, silvícolas o pesqueras, que se encuentren exentas\n3.13.27.\tPara los efectos del artículo 113-J de la Ley del ISR, cuando las personas físicas que se dediquen exclusivamente a las actividades agrícolas, ganaderas, silvícolas o pesqueras, realicen operaciones derivadas de estas actividades con personas morales, estas últimas quedarán relevadas de efectuar la retención del 1.25% por los pagos realizados a las citadas personas físicas. Lo anterior, siempre que dichos ingresos se encuentren exentos en términos de lo establecido por el artículo 113-E, noveno párrafo de la citada Ley y en el CFDI que ampare la operación, las personas físicas señalen en el atributo “Descripción”, lo siguiente: “Los ingresos que ampara este comprobante se encuentran en el supuesto de exención a que se refiere el artículo 113-E, noveno párrafo de la Ley del ISR”.\nLISR 113-E, 113-J"]
[]
[null,"Artículo 1-A LIVA"]

{"sheet":"OBJETO","index":10,"n_rows":132,"n_cols":6,"rows_kept":132,"cut":false,"hidden":false,"merged":[[79,2,79,5],[80,3,84,3],[80,4,82,4]]}
[]
[null,null,null,null,{"$f":"IF(PORTADA!$E$80=87965236,HYPERLINK(\"#MENU!C7\",\"MENÚ\"),\"\")","v":"MENÚ"}]
[null,"c_ObjetoImp","Descripción","Fecha inicio de vigencia","Fecha fin de vigencia"]
["①","01","No objeto de impuesto.","2022-01-01"]
["②","02","Sí objeto de impuesto.","2022-01-01"]
["③","03","Sí objeto del impuesto y no obligado al desglose.","2022-01-01"]
["④","04","Sí objeto del impuesto y no causa impuesto.","2022-10-07"]
["⑤","05","Sí objeto del impuesto, IVA crédito PODEBI.","2023-12-06"]
[]
[]
["①"]
[]
[]
[]
[]
[]
[]
[]
[]
[]
[]
[]
[]
[]
[]
[]
[]
[]
[]
[]
[]
[]
[]
[]
[]
[]
[]
[]
[]
[]
[]
[]
[]
[]
["②"]
[]
[]
[]
[]
[]
[]
[]
[]
[]
[]
[]
[]
[]
[]
[]
[]
[]
[]
[]
[]
[]
[]
[]
[]
[]
[]
[]
[]
[]
[]
[]
[]
[]
[null,null,"Obligados al pago del impuesto al valor agregado","Tasa general","Tasa del 0%","Exentos"]
[null,null,"Personas física y morales que en territorio nacional"]
[null,null,"Enajenación de bienes","Artículo 1° LIVA","Artículo 2-A LIVA","Artículo 9 LIVA"]
[null,null,"Prestación de servicios",null,null,"Artículo 15 LIVA"]
[null,null,"Uso o goce temporal de bienes",null,null,"Artículo 20 LIVA"]
[null,null,"Importación de bienes",null,null,"Artículo 25 LIVA"]
[null,null,"Exportación de bienes",null,"Artículo 2-A y 29 LIVA"]
[]
[]
[]
["③"]
[]
[]
[]
[]
[]
[]
[]
[]
[]
[]
[]
[]
[]
[]
[]
[]
[]
[]
[]
[]
[]
[]
[]
[]
[]
[]
[]
["④"]
[]
[]
[]
[]
[]
[]
[]
[]
[]
[]
[]
[]
[]
[]
["⑤"]

{"sheet":"DATOS","index":11,"n_rows":17,"n_cols":3,"rows_kept":17,"cut":false,"hidden":true,"merged":[]}
[]
[]
[]
[]
[null,"Fecha de expedición *","RFC *"]
[null,"Serie **","Nombre *"]
[null,"Folio **","Domicilio fiscal del receptor *"]
[null," ","Residencia fiscal ***"]
[null,"Forma de pago ***","No. de registro tributario ***"]
[null,"Método de pago ***","Régimen fiscal *"]
[null,"Moneda *","Uso del CFDI *"]
[null,"Tipo de cambio ***"]
[null,"Tipo de comprobante *"]
[null,"Exportación *"]
[null,"Lugar de expedición *"]
[null,"Condiciones de pago ***"]
[null,"Confirmación ***"]

{"sheet":"CATALOGO","index":12,"n_rows":79,"n_cols":10,"rows_kept":79,"cut":false,"hidden":true,"merged":[[49,7,50,7],[49,8,50,8],[49,9,50,9]]}
[]
[]
[]
[]
[null,"c_Exportacion","Descripción"]
[null,1,"No aplica"]
[null,2,"Definitiva con clave A1"]
[null,3,"Temporal"]
[null,4,"Definitiva con clave distinta a A1 o cuando no existe enajenación en términos del CFF"]
[]
[null,"c_RegimenFiscal","Descripción"]
[null,601,"General de Ley Personas Morales"]
[null,603,"Personas Morales con Fines no Lucrativos"]
[null,605,"Sueldos y Salarios e Ingresos Asimilados a Salarios"]
[null,606,"Arrendamiento"]
[null,607,"Régimen de Enajenación o Adquisición de Bienes"]
[null,608,"Demás ingresos"]
[null,610,"Residentes en el Extranjero sin Establecimiento Permanente en México"]
[null,611,"Ingresos por Dividendos (socios y accionistas)"]
[null,612,"Personas Físicas con Actividades Empresariales y Profesionales"]
[null,614,"Ingresos por intereses"]
[null,615,"Régimen de los ingresos por obtención de premios"]
[null,616,"Sin obligaciones fiscales"]
[null,620,"Sociedades Cooperativas de Producción que optan por diferir sus ingresos"]
[null,621,"Incorporación Fiscal"]
[null,622,"Actividades Agrícolas, Ganaderas, Silvícolas y Pesqueras"]
[null,623,"Opcional para Grupos de Sociedades"]
[null,624,"Coordinados"]
[null,625,"Régimen de las Actividades Empresariales con ingresos a través de Plataformas Tecnológicas"]
[null,626,"Régimen Simplificado de Confianza"]
[]
[null,"c_TipoRelacion","Descripción"]
[null,1,"Nota de crédito de los documentos relacionados"]
[null,2,"Nota de débito de los documentos relacionados"]
[null,3,"Devolución de mercancía sobre facturas o traslados previos"]
[null,4,"Sustitución de los CFDI previos"]
[null,5,"Traslados de mercancías facturados previamente"]
[null,6,"Factura generada por los traslados previos"]
[null,7,"CFDI por aplicación de anticipo"]
[]
[null,"c_Periodicidad","Descripción"]
[null,1,"Diario"]
[null,2,"Semanal"]
[null,3,"Quincenal"]
[null,4,"Mensual"]
[null,5,"Bimestral"]
[]
[]
[]
[null,"c_Meses","Descripción",null,null,null,null,"c_UsoCFDI","Descripción","Régimen Fiscal Receptor"]
[null,1,"Enero"]
[null,2,"Febrero",null,null,null,null,"G01","Adquisición de mercancías.","601, 603, 606, 612, 620, 621, 622, 623, 624, 625,626"]
[null,3,"Marzo",null,null,null,null,"G02","Devoluciones, descuentos o bonificaciones.","601, 603, 606, 612, 616, 620, 621, 622, 623, 624, 625,626"]
[null,4,"Abril",null,null,null,null,"G03","Gastos en general.","601, 603, 606, 612, 620, 621, 622, 623, 624, 625, 626"]
[null,5,"Mayo",null,null,null,null,"I01","Construcciones.","601, 603, 606, 612, 620, 621, 622, 623, 624, 625, 626"]
[null,6,"Junio",null,null,null,null,"I02","Mobiliario y equipo de oficina por inversiones.","601, 603, 606, 612, 620, 621, 622, 623, 624, 625, 626"]
[null,7,"Julio",null,null,null,null,"I03","Equipo de transporte.","601, 603, 606, 612, 620, 621, 622, 623, 624, 625, 626"]
[null,8,"Agosto",null,null,null,null,"I04","Equipo de computo y accesorios.","601, 603, 606, 612, 620, 621, 622, 623, 624, 625, 626"]
[null,9,"Septiembre",null,null,null,null,"I05","Dados, troqueles, moldes, matrices y herramental.","601, 603, 606, 612, 620, 621, 622, 623, 624, 625, 626"]
[null,10,"Octubre",null,null,null,null,"I06","Comunicaciones telefónicas.","601, 603, 606, 612, 620, 621, 622, 623, 624, 625, 626"]
[null,11,"Noviembre",null,null,null,null,"I07","Comunicaciones satelitales.","601, 603, 606, 612, 620, 621, 622, 623, 624, 625, 626"]
[null,12,"Diciembre",null,null,null,null,"I08","Otra maquinaria y equipo.","601, 603, 606, 612, 620, 621, 622, 623, 624, 625, 626"]
[null,13,"Enero-Febrero",null,null,null,null,"D01","Honorarios médicos, dentales y gastos hospitalarios.","605, 606, 608, 611, 612, 614, 607, 615, 625"]
[null,14,"Marzo-Abril",null,null,null,null,"D02","Gastos médicos por incapacidad o discapacidad.","605, 606, 608, 611, 612, 614, 607, 615, 625"]
[null,15,"Mayo-Junio",null,null,null,null,"D03","Gastos funerales.","605, 606, 608, 611, 612, 614, 607, 615, 625"]
[null,16,"Julio-Agosto",null,null,null,null,"D04","Donativos.","605, 606, 608, 611, 612, 614, 607, 615, 625"]
[null,17,"Septiembre-Octubre",null,null,null,null,"D05","Intereses reales efectivamente pagados por créditos hipotecarios (casa habitación).","605, 606, 608, 611, 612, 614, 607, 615, 625"]
[null,18,"Noviembre-Diciembre",null,null,null,null,"D06","Aportaciones voluntarias al SAR.","605, 606, 608, 611, 612, 614, 607, 615, 625"]
[null,null,null,null,null,null,null,"D07","Primas por seguros de gastos médicos.","605, 606, 608, 611, 612, 614, 607, 615, 625"]
[null,"c_TipoDeComprobante","Descripción",null,null,null,null,"D08","Gastos de transportación escolar obligatoria.","605, 606, 608, 611, 612, 614, 607, 615, 625"]
[null,"I","Ingreso",null,null,null,null,"D09","Depósitos en cuentas para el ahorro, primas que tengan como base planes de pensiones.","605, 606, 608, 611, 612, 614, 607, 615, 625"]
[null,"E","Egreso",null,null,null,null,"D10","Pagos por servicios educativos (colegiaturas).","605, 606, 608, 611, 612, 614, 607, 615, 625"]
[null,"T","Traslado",null,null,null,null,"S01","Sin efectos fiscales.  ","601, 603, 605, 606, 608, 610, 611, 612, 614, 616, 620, 621, 622, 623, 624, 607, 615, 625, 626"]
[null,"N","Nómina",null,null,null,null,"CP01","Pagos","601, 603, 605, 606, 608, 610, 611, 612, 614, 616, 620, 621, 622, 623, 624, 607, 615, 625, 626"]
[null,"P","Pago",null,null,null,null,"CN01","Nómina",605]
[]
[null,"c_MetodoPago","Descripción"]
[null,"PUE","Pago en una sola exhibición"]
[null,"PPD","Pago en parcialidades o diferido"]